DepartmentFamily,Entity,Date,ExpenseType,ExpenseArea,Supplier,TransactionNumber,Amount,VATRegistrationNo
BIS,The Insolvency Service,28/02/2014,Postage,OFFICIAL RECEIVER SERVICES                                                                          ,ABACUS EXPRESS,BA0000272546,27.41,417924146
BIS,The Insolvency Service,28/02/2014,Postage,OFFICIAL RECEIVER SERVICES                                                                          ,ABACUS EXPRESS,BA0000272547,53.21,417924146
BIS,The Insolvency Service,03/02/2014,Agency Workers,FINANCE AND COMMERCIAL,ALLEN LANE LIMITED,BA0000271672,"4,310.10",
BIS,The Insolvency Service,05/02/2014,Agency Workers,FINANCE AND COMMERCIAL,ALLEN LANE LIMITED,BA0000271796,"2,363.46",
BIS,The Insolvency Service,05/02/2014,Agency Workers,FINANCE AND COMMERCIAL,ALLEN LANE LIMITED,BA0000271797,"3,311.16",
BIS,The Insolvency Service,11/02/2014,Agency Workers,FINANCE AND COMMERCIAL,ALLEN LANE LIMITED,BA0000271969,"3,145.61",
BIS,The Insolvency Service,17/02/2014,Agency Workers,FINANCE AND COMMERCIAL,ALLEN LANE LIMITED,BA0000272113,"3,311.16",
BIS,The Insolvency Service,17/02/2014,Agency Workers,FINANCE AND COMMERCIAL,ALLEN LANE LIMITED,BA0000272142,"7,758.18",
BIS,The Insolvency Service,21/02/2014,Agency Workers,FINANCE AND COMMERCIAL,ALLEN LANE LIMITED,BA0000272281,"4,310.10",
BIS,The Insolvency Service,24/02/2014,Agency Workers,FINANCE AND COMMERCIAL,ALLEN LANE LIMITED,BA0000272328,"6,617.69",
BIS,The Insolvency Service,26/02/2014,Agency Workers,FINANCE AND COMMERCIAL,ALLEN LANE LIMITED,BA0000272384,"2,980.04",
BIS,The Insolvency Service,28/02/2014,Agency Workers,FINANCE AND COMMERCIAL,ALLEN LANE LIMITED,BA0000272557,"3,311.16",
BIS,The Insolvency Service,03/02/2014,Agency Workers,"PLANNING, PERFORMANCE & PROJECTS                                                                    ",ALLEN LANE LIMITED,BA0000271671,"2,363.46",
BIS,The Insolvency Service,17/02/2014,Agency Workers,"PLANNING, PERFORMANCE & PROJECTS                                                                    ",ALLEN LANE LIMITED,BA0000272141,"2,363.46",
BIS,The Insolvency Service,27/01/2014,Employee Related Costs,FINANCE AND COMMERCIAL                                                                              ,AMAZON.CO.UK LTD,BA0000272436,155.06,727255821
BIS,The Insolvency Service,01/02/2014,Employee Related Costs,FINANCE AND COMMERCIAL                                                                              ,AMAZON.CO.UK LTD,BA0000272436,12.99,727255821
BIS,The Insolvency Service,08/01/2014,Office Supplies and Services,BUSINESS SERVICES DIRECTORATE                                                                       ,AMAZON.CO.UK LTD,BA0000272436,29.95,727255821
BIS,The Insolvency Service,30/01/2014,Office Supplies and Services,BUSINESS SERVICES DIRECTORATE                                                                       ,AMAZON.CO.UK LTD,BA0000272436,7.68,727255821
BIS,The Insolvency Service,24/01/2014,Office Supplies and Services,FINANCE AND COMMERCIAL                                                                              ,AMAZON.CO.UK LTD,BA0000272436,55.00,727255821
BIS,The Insolvency Service,30/01/2014,Office Supplies and Services,OFFICIAL RECEIVER SERVICES                                                                          ,AMAZON.CO.UK LTD,BA0000272436,4.70,727255821
BIS,The Insolvency Service,30/01/2014,Office Supplies and Services,OFFICIAL RECEIVER SERVICES                                                                          ,AMAZON.CO.UK LTD,BA0000272436,6.40,727255821
BIS,The Insolvency Service,31/01/2014,Office Supplies and Services,OFFICIAL RECEIVER SERVICES                                                                          ,AMAZON.CO.UK LTD,BA0000272436,2.44,727255821
BIS,The Insolvency Service,10/01/2014,Training Costs,PEOPLE & CAPABILITY                                                                                 ,AMAZON.CO.UK LTD,BA0000272436,26.12,727255821
BIS,The Insolvency Service,10/01/2014,Training Costs,PEOPLE & CAPABILITY                                                                                 ,AMAZON.CO.UK LTD,BA0000272436,58.34,727255821
BIS,The Insolvency Service,06/01/2014,Travel and Subsistence,BUSINESS SERVICES DIRECTORATE                                                                       ,AMAZON.CO.UK LTD,BA0000272436,21.95,727255821
BIS,The Insolvency Service,13/02/2014,Insolvency Case Related Costs,OFFICIAL RECEIVER SERVICES                                                                          ,ANGLO EUROPEAN PRIVATE DETECTIVES,BA0000272015,"2,112.00",451474257
BIS,The Insolvency Service,13/02/2014,Investigation and Enforcement Costs,INVESTIGATION & ENFORCEMENT SERVICES                                                                ,ANGLO EUROPEAN PRIVATE DETECTIVES,BA0000272015,"2,050.00",451474257
BIS,The Insolvency Service,21/02/2014,Investigation and Enforcement Costs,INVESTIGATION & ENFORCEMENT SERVICES                                                                ,ANGLO EUROPEAN PRIVATE DETECTIVES,BA0000272235,307.90,451474257
BIS,The Insolvency Service,13/02/2014,Investigation and Enforcement Costs,OFFICIAL RECEIVER SERVICES                                                                          ,ANGLO EUROPEAN PRIVATE DETECTIVES,BA0000272015,140.00,451474257
BIS,The Insolvency Service,05/02/2014,Accommodation,BUSINESS SERVICES DIRECTORATE                                                                       ,ARCHIVE 2000 UK LTD,BA0000271746,"1,408.44",425421969
BIS,The Insolvency Service,05/02/2014,Accommodation,BUSINESS SERVICES DIRECTORATE                                                                       ,ARCHIVE 2000 UK LTD,BA0000271773,61.80,425421969
BIS,The Insolvency Service,05/02/2014,Accommodation,BUSINESS SERVICES DIRECTORATE                                                                       ,ARCHIVE 2000 UK LTD,BA0000271747,"1,447.84",425421969
BIS,The Insolvency Service,05/02/2014,Accommodation,BUSINESS SERVICES DIRECTORATE                                                                       ,ARCHIVE 2000 UK LTD,BA0000271791,"1,418.04",425421969
BIS,The Insolvency Service,15/01/2014,Accommodation,OFFICIAL RECEIVER SERVICES                                                                          ,ARGOS RETAIL GROUP,BA0000272436,12.99,145899025
BIS,The Insolvency Service,05/02/2014,Computer and IT Systems,INFORMATION TECHNOLOGY                                                                              ,ATOS IT SERVICES UK LTD,BA0000271741,"1,876.80",
BIS,The Insolvency Service,13/02/2014,Computer and IT Systems,INFORMATION TECHNOLOGY                                                                              ,ATOS IT SERVICES UK LTD,BA0000271998,"11,735.70",
BIS,The Insolvency Service,13/02/2014,Computer and IT Systems,INFORMATION TECHNOLOGY                                                                              ,ATOS IT SERVICES UK LTD,BA0000271999,"18,777.12",
BIS,The Insolvency Service,19/02/2014,Accommodation,OFFICIAL RECEIVER SERVICES                                                                          ,AUCTUS LIMITED,BA0000272191,425.00,677450896
BIS,The Insolvency Service,17/02/2014,Agency Workers,BUSINESS SERVICES DIRECTORATE                                                                       ,BADENOCH & CLARK,BA0000272148,"3,300.00",232347975
BIS,The Insolvency Service,13/02/2014,Agency Workers,INFORMATION TECHNOLOGY                                                                              ,BADENOCH & CLARK,BA0000271991,"2,493.36",232347975
BIS,The Insolvency Service,13/02/2014,Agency Workers,INFORMATION TECHNOLOGY                                                                              ,BADENOCH & CLARK,BA0000271991,"4,646.02",232347975
BIS,The Insolvency Service,13/02/2014,Agency Workers,INVESTIGATION & ENFORCEMENT SERVICES                                                                ,BADENOCH & CLARK,BA0000271991,"2,860.20",232347975
BIS,The Insolvency Service,13/02/2014,Agency Workers,INVESTIGATION & ENFORCEMENT SERVICES                                                                ,BADENOCH & CLARK,BA0000271991,"3,383.21",232347975
BIS,The Insolvency Service,13/02/2014,Agency Workers,INVESTIGATION & ENFORCEMENT SERVICES                                                                ,BADENOCH & CLARK,BA0000271991,"3,835.31",232347975
BIS,The Insolvency Service,13/02/2014,Agency Workers,INVESTIGATION & ENFORCEMENT SERVICES                                                                ,BADENOCH & CLARK,BA0000271991,"3,913.28",232347975
BIS,The Insolvency Service,13/02/2014,Agency Workers,INVESTIGATION & ENFORCEMENT SERVICES                                                                ,BADENOCH & CLARK,BA0000271991,"4,240.67",232347975
BIS,The Insolvency Service,13/02/2014,Agency Workers,INVESTIGATION & ENFORCEMENT SERVICES                                                                ,BADENOCH & CLARK,BA0000271991,"4,256.26",232347975
BIS,The Insolvency Service,13/02/2014,Agency Workers,INVESTIGATION & ENFORCEMENT SERVICES                                                                ,BADENOCH & CLARK,BA0000271991,"5,770.81",232347975
BIS,The Insolvency Service,13/02/2014,Agency Workers,INVESTIGATION & ENFORCEMENT SERVICES                                                                ,BADENOCH & CLARK,BA0000271991,"7,218.48",232347975
BIS,The Insolvency Service,13/02/2014,Agency Workers,INVESTIGATION & ENFORCEMENT SERVICES                                                                ,BADENOCH & CLARK,BA0000271991,"8,879.79",232347975
BIS,The Insolvency Service,13/02/2014,Agency Workers,INVESTIGATION & ENFORCEMENT SERVICES                                                                ,BADENOCH & CLARK,BA0000271991,"21,583.12",232347975
BIS,The Insolvency Service,05/02/2014,Agency Workers,"PLANNING, PERFORMANCE & PROJECTS                                                                    ",BADENOCH & CLARK,BA0000271759,930.00,232347975
BIS,The Insolvency Service,05/02/2014,Agency Workers,"PLANNING, PERFORMANCE & PROJECTS                                                                    ",BADENOCH & CLARK,BA0000271761,930.00,232347975
BIS,The Insolvency Service,05/02/2014,Agency Workers,"PLANNING, PERFORMANCE & PROJECTS                                                                    ",BADENOCH & CLARK,BA0000271762,930.00,232347975
BIS,The Insolvency Service,05/02/2014,Agency Workers,"PLANNING, PERFORMANCE & PROJECTS                                                                    ",BADENOCH & CLARK,BA0000271763,930.00,232347975
BIS,The Insolvency Service,05/02/2014,Agency Workers,"PLANNING, PERFORMANCE & PROJECTS                                                                    ",BADENOCH & CLARK,BA0000271764,930.00,232347975
BIS,The Insolvency Service,05/02/2014,Agency Workers,"PLANNING, PERFORMANCE & PROJECTS                                                                    ",BADENOCH & CLARK,BA0000271765,744.00,232347975
BIS,The Insolvency Service,05/02/2014,Agency Workers,"PLANNING, PERFORMANCE & PROJECTS                                                                    ",BADENOCH & CLARK,BA0000271766,744.00,232347975
BIS,The Insolvency Service,05/02/2014,Agency Workers,"PLANNING, PERFORMANCE & PROJECTS                                                                    ",BADENOCH & CLARK,BA0000271767,930.00,232347975
BIS,The Insolvency Service,05/02/2014,Agency Workers,"PLANNING, PERFORMANCE & PROJECTS                                                                    ",BADENOCH & CLARK,BA0000271768,837.00,232347975
BIS,The Insolvency Service,05/02/2014,Agency Workers,"PLANNING, PERFORMANCE & PROJECTS                                                                    ",BADENOCH & CLARK,BA0000271769,372.00,232347975
BIS,The Insolvency Service,05/02/2014,Agency Workers,"PLANNING, PERFORMANCE & PROJECTS                                                                    ",BADENOCH & CLARK,BA0000271770,930.00,232347975
BIS,The Insolvency Service,05/02/2014,Agency Workers,"PLANNING, PERFORMANCE & PROJECTS                                                                    ",BADENOCH & CLARK,BA0000271771,837.00,232347975
BIS,The Insolvency Service,05/02/2014,Agency Workers,"PLANNING, PERFORMANCE & PROJECTS                                                                    ",BADENOCH & CLARK,BA0000271774,372.00,232347975
BIS,The Insolvency Service,07/02/2014,Agency Workers,"PLANNING, PERFORMANCE & PROJECTS                                                                    ",BADENOCH & CLARK,BA0000271824,"3,300.00",232347975
BIS,The Insolvency Service,07/02/2014,Agency Workers,"PLANNING, PERFORMANCE & PROJECTS                                                                    ",BADENOCH & CLARK,BA0000271860,930.00,232347975
BIS,The Insolvency Service,07/02/2014,Computer and IT Systems,BUSINESS SERVICES DIRECTORATE                                                                       ,BADENOCH & CLARK,BA0000271833,"3,300.00",232347975
BIS,The Insolvency Service,21/02/2014,Computer and IT Systems,BUSINESS SERVICES DIRECTORATE                                                                       ,BADENOCH & CLARK,BA0000272282,"3,300.00",232347975
BIS,The Insolvency Service,28/02/2014,Accommodation,ESTATES,BANNER BUSINESS SERVICES Ltd.,BA0000272531,11.88,731860439
BIS,The Insolvency Service,28/02/2014,Accommodation,ESTATES,BANNER BUSINESS SERVICES Ltd.,BA0000272531,14.40,731860439
BIS,The Insolvency Service,28/02/2014,Accommodation,ESTATES,BANNER BUSINESS SERVICES Ltd.,BA0000272531,17.10,731860439
BIS,The Insolvency Service,28/02/2014,Accommodation,ESTATES,BANNER BUSINESS SERVICES Ltd.,BA0000272531,23.40,731860439
BIS,The Insolvency Service,28/02/2014,Accommodation,ESTATES,BANNER BUSINESS SERVICES Ltd.,BA0000272531,25.92,731860439
BIS,The Insolvency Service,28/02/2014,Accommodation,ESTATES,BANNER BUSINESS SERVICES Ltd.,BA0000272531,26.36,731860439
BIS,The Insolvency Service,28/02/2014,Accommodation,ESTATES,BANNER BUSINESS SERVICES Ltd.,BA0000272531,30.32,731860439
BIS,The Insolvency Service,28/02/2014,Accommodation,ESTATES,BANNER BUSINESS SERVICES Ltd.,BA0000272531,30.88,731860439
BIS,The Insolvency Service,28/02/2014,Accommodation,ESTATES,BANNER BUSINESS SERVICES Ltd.,BA0000272531,48.28,731860439
BIS,The Insolvency Service,28/02/2014,Accommodation,ESTATES,BANNER BUSINESS SERVICES Ltd.,BA0000272531,60.73,731860439
BIS,The Insolvency Service,28/02/2014,Accommodation,ESTATES,BANNER BUSINESS SERVICES Ltd.,BA0000272531,67.08,731860439
BIS,The Insolvency Service,28/02/2014,Accommodation,ESTATES,BANNER BUSINESS SERVICES Ltd.,BA0000272531,84.99,731860439
BIS,The Insolvency Service,28/02/2014,Accommodation,ESTATES,BANNER BUSINESS SERVICES Ltd.,BA0000272531,90.20,731860439
BIS,The Insolvency Service,28/02/2014,Accommodation,ESTATES,BANNER BUSINESS SERVICES Ltd.,BA0000272531,94.60,731860439
BIS,The Insolvency Service,28/02/2014,Accommodation,ESTATES,BANNER BUSINESS SERVICES Ltd.,BA0000272531,96.75,731860439
BIS,The Insolvency Service,28/02/2014,Accommodation,ESTATES,BANNER BUSINESS SERVICES Ltd.,BA0000272531,97.20,731860439
BIS,The Insolvency Service,28/02/2014,Accommodation,ESTATES,BANNER BUSINESS SERVICES Ltd.,BA0000272531,99.56,731860439
BIS,The Insolvency Service,28/02/2014,Accommodation,ESTATES,BANNER BUSINESS SERVICES Ltd.,BA0000272531,103.96,731860439
BIS,The Insolvency Service,28/02/2014,Accommodation,ESTATES,BANNER BUSINESS SERVICES Ltd.,BA0000272531,109.00,731860439
BIS,The Insolvency Service,28/02/2014,Accommodation,ESTATES,BANNER BUSINESS SERVICES Ltd.,BA0000272531,115.20,731860439
BIS,The Insolvency Service,28/02/2014,Accommodation,ESTATES,BANNER BUSINESS SERVICES Ltd.,BA0000272531,115.80,731860439
BIS,The Insolvency Service,28/02/2014,Accommodation,ESTATES,BANNER BUSINESS SERVICES Ltd.,BA0000272531,164.57,731860439
BIS,The Insolvency Service,28/02/2014,Accommodation,ESTATES,BANNER BUSINESS SERVICES Ltd.,BA0000272531,227.50,731860439
BIS,The Insolvency Service,28/02/2014,Accommodation,ESTATES,BANNER BUSINESS SERVICES Ltd.,BA0000272531,740.85,731860439
BIS,The Insolvency Service,28/02/2014,Accommodation,ESTATES,BANNER BUSINESS SERVICES Ltd.,BA0000272531,862.38,731860439
BIS,The Insolvency Service,03/02/2014,Office Supplies and Services,BUSINESS SERVICES DIRECTORATE                                                                       ,BANNER BUSINESS SERVICES Ltd.,BA0000271670,6.04,731860439
BIS,The Insolvency Service,27/02/2014,Office Supplies and Services,BUSINESS SERVICES DIRECTORATE                                                                       ,BANNER BUSINESS SERVICES Ltd.,BA0000272460,284.32,731860439
BIS,The Insolvency Service,03/02/2014,Office Supplies and Services,FACILITIES                                                                                          ,BANNER BUSINESS SERVICES Ltd.,BA0000271670,"2,191.14",731860439
BIS,The Insolvency Service,03/02/2014,Office Supplies and Services,INFORMATION TECHNOLOGY                                                                              ,BANNER BUSINESS SERVICES Ltd.,BA0000271670,"3,020.15",731860439
BIS,The Insolvency Service,27/02/2014,Office Supplies and Services,INFORMATION TECHNOLOGY                                                                              ,BANNER BUSINESS SERVICES Ltd.,BA0000272460,"3,513.69",731860439
BIS,The Insolvency Service,03/02/2014,Office Supplies and Services,INVESTIGATION & ENFORCEMENT SERVICES                                                                ,BANNER BUSINESS SERVICES Ltd.,BA0000271670,219.29,731860439
BIS,The Insolvency Service,27/02/2014,Office Supplies and Services,INVESTIGATION & ENFORCEMENT SERVICES                                                                ,BANNER BUSINESS SERVICES Ltd.,BA0000272460,321.53,731860439
BIS,The Insolvency Service,03/02/2014,Office Supplies and Services,OFFICIAL RECEIVER SERVICES                                                                          ,BANNER BUSINESS SERVICES Ltd.,BA0000271670,21.30,731860439
BIS,The Insolvency Service,03/02/2014,Office Supplies and Services,OFFICIAL RECEIVER SERVICES                                                                          ,BANNER BUSINESS SERVICES Ltd.,BA0000271670,75.36,731860439
BIS,The Insolvency Service,03/02/2014,Office Supplies and Services,OFFICIAL RECEIVER SERVICES                                                                          ,BANNER BUSINESS SERVICES Ltd.,BA0000271670,82.03,731860439
BIS,The Insolvency Service,03/02/2014,Office Supplies and Services,OFFICIAL RECEIVER SERVICES                                                                          ,BANNER BUSINESS SERVICES Ltd.,BA0000271670,88.80,731860439
BIS,The Insolvency Service,03/02/2014,Office Supplies and Services,OFFICIAL RECEIVER SERVICES                                                                          ,BANNER BUSINESS SERVICES Ltd.,BA0000271670,121.30,731860439
BIS,The Insolvency Service,03/02/2014,Office Supplies and Services,OFFICIAL RECEIVER SERVICES                                                                          ,BANNER BUSINESS SERVICES Ltd.,BA0000271670,133.09,731860439
BIS,The Insolvency Service,03/02/2014,Office Supplies and Services,OFFICIAL RECEIVER SERVICES                                                                          ,BANNER BUSINESS SERVICES Ltd.,BA0000271670,151.56,731860439
BIS,The Insolvency Service,03/02/2014,Office Supplies and Services,OFFICIAL RECEIVER SERVICES                                                                          ,BANNER BUSINESS SERVICES Ltd.,BA0000271670,178.16,731860439
BIS,The Insolvency Service,03/02/2014,Office Supplies and Services,OFFICIAL RECEIVER SERVICES                                                                          ,BANNER BUSINESS SERVICES Ltd.,BA0000271670,180.98,731860439
BIS,The Insolvency Service,03/02/2014,Office Supplies and Services,OFFICIAL RECEIVER SERVICES                                                                          ,BANNER BUSINESS SERVICES Ltd.,BA0000271670,218.90,731860439
BIS,The Insolvency Service,03/02/2014,Office Supplies and Services,OFFICIAL RECEIVER SERVICES                                                                          ,BANNER BUSINESS SERVICES Ltd.,BA0000271670,236.64,731860439
BIS,The Insolvency Service,03/02/2014,Office Supplies and Services,OFFICIAL RECEIVER SERVICES                                                                          ,BANNER BUSINESS SERVICES Ltd.,BA0000271670,237.06,731860439
BIS,The Insolvency Service,03/02/2014,Office Supplies and Services,OFFICIAL RECEIVER SERVICES                                                                          ,BANNER BUSINESS SERVICES Ltd.,BA0000271670,238.67,731860439
BIS,The Insolvency Service,03/02/2014,Office Supplies and Services,OFFICIAL RECEIVER SERVICES                                                                          ,BANNER BUSINESS SERVICES Ltd.,BA0000271670,247.58,731860439
BIS,The Insolvency Service,03/02/2014,Office Supplies and Services,OFFICIAL RECEIVER SERVICES                                                                          ,BANNER BUSINESS SERVICES Ltd.,BA0000271670,301.91,731860439
BIS,The Insolvency Service,03/02/2014,Office Supplies and Services,OFFICIAL RECEIVER SERVICES                                                                          ,BANNER BUSINESS SERVICES Ltd.,BA0000271670,384.30,731860439
BIS,The Insolvency Service,03/02/2014,Office Supplies and Services,OFFICIAL RECEIVER SERVICES                                                                          ,BANNER BUSINESS SERVICES Ltd.,BA0000271670,426.00,731860439
BIS,The Insolvency Service,03/02/2014,Office Supplies and Services,OFFICIAL RECEIVER SERVICES                                                                          ,BANNER BUSINESS SERVICES Ltd.,BA0000271670,518.78,731860439
BIS,The Insolvency Service,03/02/2014,Office Supplies and Services,OFFICIAL RECEIVER SERVICES                                                                          ,BANNER BUSINESS SERVICES Ltd.,BA0000271670,550.14,731860439
BIS,The Insolvency Service,03/02/2014,Office Supplies and Services,OFFICIAL RECEIVER SERVICES                                                                          ,BANNER BUSINESS SERVICES Ltd.,BA0000271670,610.55,731860439
BIS,The Insolvency Service,03/02/2014,Office Supplies and Services,OFFICIAL RECEIVER SERVICES                                                                          ,BANNER BUSINESS SERVICES Ltd.,BA0000271670,791.93,731860439
BIS,The Insolvency Service,27/02/2014,Office Supplies and Services,OFFICIAL RECEIVER SERVICES                                                                          ,BANNER BUSINESS SERVICES Ltd.,BA0000272460,12.37,731860439
BIS,The Insolvency Service,27/02/2014,Office Supplies and Services,OFFICIAL RECEIVER SERVICES                                                                          ,BANNER BUSINESS SERVICES Ltd.,BA0000272460,26.68,731860439
BIS,The Insolvency Service,27/02/2014,Office Supplies and Services,OFFICIAL RECEIVER SERVICES                                                                          ,BANNER BUSINESS SERVICES Ltd.,BA0000272460,43.50,731860439
BIS,The Insolvency Service,27/02/2014,Office Supplies and Services,OFFICIAL RECEIVER SERVICES                                                                          ,BANNER BUSINESS SERVICES Ltd.,BA0000272460,63.54,731860439
BIS,The Insolvency Service,27/02/2014,Office Supplies and Services,OFFICIAL RECEIVER SERVICES                                                                          ,BANNER BUSINESS SERVICES Ltd.,BA0000272460,65.11,731860439
BIS,The Insolvency Service,27/02/2014,Office Supplies and Services,OFFICIAL RECEIVER SERVICES                                                                          ,BANNER BUSINESS SERVICES Ltd.,BA0000272460,158.66,731860439
BIS,The Insolvency Service,27/02/2014,Office Supplies and Services,OFFICIAL RECEIVER SERVICES                                                                          ,BANNER BUSINESS SERVICES Ltd.,BA0000272460,167.08,731860439
BIS,The Insolvency Service,27/02/2014,Office Supplies and Services,OFFICIAL RECEIVER SERVICES                                                                          ,BANNER BUSINESS SERVICES Ltd.,BA0000272460,198.26,731860439
BIS,The Insolvency Service,27/02/2014,Office Supplies and Services,OFFICIAL RECEIVER SERVICES                                                                          ,BANNER BUSINESS SERVICES Ltd.,BA0000272460,229.46,731860439
BIS,The Insolvency Service,27/02/2014,Office Supplies and Services,OFFICIAL RECEIVER SERVICES                                                                          ,BANNER BUSINESS SERVICES Ltd.,BA0000272460,236.66,731860439
BIS,The Insolvency Service,27/02/2014,Office Supplies and Services,OFFICIAL RECEIVER SERVICES                                                                          ,BANNER BUSINESS SERVICES Ltd.,BA0000272460,252.96,731860439
BIS,The Insolvency Service,27/02/2014,Office Supplies and Services,OFFICIAL RECEIVER SERVICES                                                                          ,BANNER BUSINESS SERVICES Ltd.,BA0000272460,268.78,731860439
BIS,The Insolvency Service,27/02/2014,Office Supplies and Services,OFFICIAL RECEIVER SERVICES                                                                          ,BANNER BUSINESS SERVICES Ltd.,BA0000272460,270.84,731860439
BIS,The Insolvency Service,27/02/2014,Office Supplies and Services,OFFICIAL RECEIVER SERVICES                                                                          ,BANNER BUSINESS SERVICES Ltd.,BA0000272460,284.66,731860439
BIS,The Insolvency Service,27/02/2014,Office Supplies and Services,OFFICIAL RECEIVER SERVICES                                                                          ,BANNER BUSINESS SERVICES Ltd.,BA0000272460,312.34,731860439
BIS,The Insolvency Service,27/02/2014,Office Supplies and Services,OFFICIAL RECEIVER SERVICES                                                                          ,BANNER BUSINESS SERVICES Ltd.,BA0000272460,337.81,731860439
BIS,The Insolvency Service,27/02/2014,Office Supplies and Services,OFFICIAL RECEIVER SERVICES                                                                          ,BANNER BUSINESS SERVICES Ltd.,BA0000272460,339.79,731860439
BIS,The Insolvency Service,27/02/2014,Office Supplies and Services,OFFICIAL RECEIVER SERVICES                                                                          ,BANNER BUSINESS SERVICES Ltd.,BA0000272460,377.16,731860439
BIS,The Insolvency Service,27/02/2014,Office Supplies and Services,OFFICIAL RECEIVER SERVICES                                                                          ,BANNER BUSINESS SERVICES Ltd.,BA0000272460,378.92,731860439
BIS,The Insolvency Service,27/02/2014,Office Supplies and Services,OFFICIAL RECEIVER SERVICES                                                                          ,BANNER BUSINESS SERVICES Ltd.,BA0000272460,384.58,731860439
BIS,The Insolvency Service,27/02/2014,Office Supplies and Services,OFFICIAL RECEIVER SERVICES                                                                          ,BANNER BUSINESS SERVICES Ltd.,BA0000272460,389.84,731860439
BIS,The Insolvency Service,27/02/2014,Office Supplies and Services,OFFICIAL RECEIVER SERVICES                                                                          ,BANNER BUSINESS SERVICES Ltd.,BA0000272460,398.05,731860439
BIS,The Insolvency Service,27/02/2014,Office Supplies and Services,OFFICIAL RECEIVER SERVICES                                                                          ,BANNER BUSINESS SERVICES Ltd.,BA0000272460,425.71,731860439
BIS,The Insolvency Service,27/02/2014,Office Supplies and Services,OFFICIAL RECEIVER SERVICES                                                                          ,BANNER BUSINESS SERVICES Ltd.,BA0000272460,529.60,731860439
BIS,The Insolvency Service,27/02/2014,Office Supplies and Services,OFFICIAL RECEIVER SERVICES                                                                          ,BANNER BUSINESS SERVICES Ltd.,BA0000272460,674.00,731860439
BIS,The Insolvency Service,27/02/2014,Office Supplies and Services,OFFICIAL RECEIVER SERVICES                                                                          ,BANNER BUSINESS SERVICES Ltd.,BA0000272460,877.16,731860439
BIS,The Insolvency Service,27/02/2014,Office Supplies and Services,OFFICIAL RECEIVER SERVICES                                                                          ,BANNER BUSINESS SERVICES Ltd.,BA0000272460,"1,166.56",731860439
BIS,The Insolvency Service,02/01/2014,Computer and IT Systems,INFORMATION TECHNOLOGY                                                                              ,BE UN LIMITED,BA0000272436,22.44,
BIS,The Insolvency Service,22/01/2014,Telecoms,FINANCE AND COMMERCIAL                                                                              ,BE UN LIMITED,BA0000272436,-21.77,
BIS,The Insolvency Service,14/01/2014,Accommodation,FINANCE AND COMMERCIAL                                                                              ,Beal UK Ltd,BA0000272436,19.08,525738627
BIS,The Insolvency Service,19/02/2014,Accommodation,ESTATES,BERWIN LEIGHTON PAISNER,BA0000272212,"1,020.00",243244976
BIS,The Insolvency Service,21/02/2014,Accommodation,ESTATES,BERWIN LEIGHTON PAISNER,BA0000272246,"1,594.40",243244976
BIS,The Insolvency Service,20/02/2014,Accommodation,ESTATES,BIS - DEPT. FOR BUSINESS INNOVATION & SKILLS,BA0000272241,"20,704.19",888825550
BIS,The Insolvency Service,20/02/2014,Accommodation,ESTATES,BIS - DEPT. FOR BUSINESS INNOVATION & SKILLS,BA0000272241,"25,759.46",888825550
BIS,The Insolvency Service,20/02/2014,Accommodation,ESTATES,BIS - DEPT. FOR BUSINESS INNOVATION & SKILLS,BA0000272240,47.61,888825550
BIS,The Insolvency Service,20/02/2014,Accommodation,ESTATES,BIS - DEPT. FOR BUSINESS INNOVATION & SKILLS,BA0000272241,721.96,888825550
BIS,The Insolvency Service,20/02/2014,Accommodation,ESTATES,BIS - DEPT. FOR BUSINESS INNOVATION & SKILLS,BA0000272240,"2,229.78",888825550
BIS,The Insolvency Service,20/02/2014,Accommodation,ESTATES,BIS - DEPT. FOR BUSINESS INNOVATION & SKILLS,BA0000272240,"3,440.25",888825550
BIS,The Insolvency Service,20/02/2014,Accommodation,ESTATES,BIS - DEPT. FOR BUSINESS INNOVATION & SKILLS,BA0000272240,"3,917.22",888825550
BIS,The Insolvency Service,20/02/2014,Accommodation,ESTATES,BIS - DEPT. FOR BUSINESS INNOVATION & SKILLS,BA0000272240,"4,793.33",888825550
BIS,The Insolvency Service,20/02/2014,Accommodation,ESTATES,BIS - DEPT. FOR BUSINESS INNOVATION & SKILLS,BA0000272240,"5,215.22",888825550
BIS,The Insolvency Service,20/02/2014,Accommodation,ESTATES,BIS - DEPT. FOR BUSINESS INNOVATION & SKILLS,BA0000272240,"8,834.28",888825550
BIS,The Insolvency Service,20/02/2014,Accommodation,ESTATES,BIS - DEPT. FOR BUSINESS INNOVATION & SKILLS,BA0000272240,"3,606.00",888825550
BIS,The Insolvency Service,20/02/2014,Accommodation,ESTATES,BIS - DEPT. FOR BUSINESS INNOVATION & SKILLS,BA0000272240,"2,704.50",888825550
BIS,The Insolvency Service,02/01/2014,Travel and Subsistence,FINANCE AND COMMERCIAL,BMI BABY,BA0000272436,206.82,
BIS,The Insolvency Service,08/01/2014,Travel and Subsistence,FINANCE AND COMMERCIAL,BMI BABY,BA0000272436,201.10,
BIS,The Insolvency Service,21/01/2014,Travel and Subsistence,FINANCE AND COMMERCIAL,BMI BABY,BA0000272436,148.51,
BIS,The Insolvency Service,21/01/2014,Travel and Subsistence,FINANCE AND COMMERCIAL,BMI BABY,BA0000272436,172.82,
BIS,The Insolvency Service,30/01/2014,Travel and Subsistence,FINANCE AND COMMERCIAL,BMI BABY,BA0000272436,125.80,
BIS,The Insolvency Service,08/01/2014,Travel and Subsistence,INVESTIGATION & ENFORCEMENT SERVICES                                                                ,BMI BABY,BA0000272436,45.00,
BIS,The Insolvency Service,23/01/2014,Travel and Subsistence,PEOPLE & CAPABILITY                                                                                 ,BMI BABY,BA0000272436,19.99,
BIS,The Insolvency Service,07/02/2014,Investigation and Enforcement Costs,INVESTIGATION & ENFORCEMENT SERVICES                                                                ,BOND DICKINSON                                              ,BA0000271825,"22,572.50",123392627
BIS,The Insolvency Service,17/02/2014,Investigation and Enforcement Costs,INVESTIGATION & ENFORCEMENT SERVICES                                                                ,BOND DICKINSON                                              ,BA0000272107,51.58,123392627
BIS,The Insolvency Service,17/02/2014,Investigation and Enforcement Costs,INVESTIGATION & ENFORCEMENT SERVICES                                                                ,BOND DICKINSON                                              ,BA0000272107,"46,923.15",123392627
BIS,The Insolvency Service,17/02/2014,Investigation and Enforcement Costs,INVESTIGATION & ENFORCEMENT SERVICES                                                                ,BOND DICKINSON                                              ,BA0000272107,"1,127.97",123392627
BIS,The Insolvency Service,17/02/2014,Investigation and Enforcement Costs,INVESTIGATION & ENFORCEMENT SERVICES                                                                ,BOND DICKINSON                                              ,BA0000272107,"71,527.40",123392627
BIS,The Insolvency Service,17/02/2014,Investigation and Enforcement Costs,INVESTIGATION & ENFORCEMENT SERVICES                                                                ,BOND DICKINSON                                              ,BA0000272073,807.40,123392627
BIS,The Insolvency Service,17/02/2014,Investigation and Enforcement Costs,INVESTIGATION & ENFORCEMENT SERVICES                                                                ,BOND DICKINSON                                              ,BA0000272107,150.70,123392627
BIS,The Insolvency Service,17/02/2014,Investigation and Enforcement Costs,INVESTIGATION & ENFORCEMENT SERVICES                                                                ,BOND DICKINSON                                              ,BA0000272107,562.00,123392627
BIS,The Insolvency Service,17/02/2014,Investigation and Enforcement Costs,INVESTIGATION & ENFORCEMENT SERVICES                                                                ,BOND DICKINSON                                              ,BA0000272107,"4,648.60",123392627
BIS,The Insolvency Service,17/02/2014,Investigation and Enforcement Costs,INVESTIGATION & ENFORCEMENT SERVICES                                                                ,BOND DICKINSON                                              ,BA0000272107,70.06,123392627
BIS,The Insolvency Service,17/02/2014,Investigation and Enforcement Costs,INVESTIGATION & ENFORCEMENT SERVICES                                                                ,BOND DICKINSON                                              ,BA0000272107,"1,769.80",123392627
BIS,The Insolvency Service,17/02/2014,Investigation and Enforcement Costs,INVESTIGATION & ENFORCEMENT SERVICES                                                                ,BOND DICKINSON                                              ,BA0000272107,"4,211.02",123392627
BIS,The Insolvency Service,17/02/2014,Investigation and Enforcement Costs,INVESTIGATION & ENFORCEMENT SERVICES                                                                ,BOND DICKINSON                                              ,BA0000272107,"19,147.30",123392627
BIS,The Insolvency Service,17/02/2014,Investigation and Enforcement Costs,INVESTIGATION & ENFORCEMENT SERVICES                                                                ,BOND DICKINSON                                              ,BA0000272107,"19,640.05",123392627
BIS,The Insolvency Service,24/02/2014,Computer and IT Systems,FINANCE AND COMMERCIAL,BOTTOMLINE TECHNOLOGIES,BA0000272319,"4,104.05",724548231
BIS,The Insolvency Service,17/02/2014,Training Costs,PEOPLE & CAPABILITY                                                                                 ,BPP PROFESSIONAL EDUCATION,BA0000272106,"2,800.00",466451629
BIS,The Insolvency Service,13/02/2014,Accommodation,ESTATES,BRITISH GAS BUSINESS,BA0000272063,173.68,684966762
BIS,The Insolvency Service,17/02/2014,Accommodation,ESTATES,BRITISH GAS BUSINESS,BA0000272146,240.61,684966762
BIS,The Insolvency Service,17/02/2014,Accommodation,ESTATES,BRITISH GAS BUSINESS,BA0000272117,273.08,684966762
BIS,The Insolvency Service,17/02/2014,Accommodation,ESTATES,BRITISH GAS BUSINESS,BA0000272118,96.53,684966762
BIS,The Insolvency Service,17/02/2014,Accommodation,ESTATES,BRITISH GAS BUSINESS,BA0000272119,171.65,684966762
BIS,The Insolvency Service,17/02/2014,Accommodation,ESTATES,BRITISH GAS BUSINESS,BA0000272120,26.67,684966762
BIS,The Insolvency Service,17/02/2014,Accommodation,ESTATES,BRITISH GAS BUSINESS,BA0000272121,63.59,684966762
BIS,The Insolvency Service,17/02/2014,Accommodation,ESTATES,BRITISH GAS BUSINESS,BA0000272122,28.21,684966762
BIS,The Insolvency Service,17/02/2014,Accommodation,ESTATES,BRITISH GAS BUSINESS,BA0000272123,413.87,684966762
BIS,The Insolvency Service,17/02/2014,Accommodation,ESTATES,BRITISH GAS BUSINESS,BA0000272124,146.42,684966762
BIS,The Insolvency Service,17/02/2014,Accommodation,ESTATES,BRITISH GAS BUSINESS,BA0000272125,66.93,684966762
BIS,The Insolvency Service,17/02/2014,Accommodation,ESTATES,BRITISH GAS BUSINESS,BA0000272126,308.09,684966762
BIS,The Insolvency Service,17/02/2014,Accommodation,ESTATES,BRITISH GAS BUSINESS,BA0000272127,455.35,684966762
BIS,The Insolvency Service,19/02/2014,Accommodation,ESTATES,BRITISH GAS BUSINESS,BA0000272179,336.72,684966762
BIS,The Insolvency Service,21/02/2014,Accommodation,ESTATES,BRITISH GAS BUSINESS,BA0000272269,552.85,684966762
BIS,The Insolvency Service,21/02/2014,Accommodation,ESTATES,BRITISH GAS BUSINESS,BA0000272270,655.76,684966762
BIS,The Insolvency Service,17/02/2014,Computer and IT Systems,INFORMATION TECHNOLOGY                                                                              ,BRODIES LLP,BA0000272115,"1,262.40",268498791
BIS,The Insolvency Service,13/02/2014,Computer and IT Systems,INVESTIGATION & ENFORCEMENT SERVICES                                                                ,BT BUSINESS DIRECT LTD,BA0000272043,573.55,245719348
BIS,The Insolvency Service,13/02/2014,Computer and IT Systems,INVESTIGATION & ENFORCEMENT SERVICES                                                                ,BT BUSINESS DIRECT LTD,BA0000272044,81.51,245719348
BIS,The Insolvency Service,07/02/2014,Telecoms,FACILITIES                                                                                          ,BT CONFERENCING SERVICES,BA0000271863,660.80,245719348
BIS,The Insolvency Service,13/02/2014,Computer and IT Systems,INFORMATION TECHNOLOGY                                                                              ,BT TELEPHONE PAYMENT CENTRE,BA0000272034,56.26,245719348
BIS,The Insolvency Service,21/02/2014,Computer and IT Systems,INFORMATION TECHNOLOGY                                                                              ,BT TELEPHONE PAYMENT CENTRE,BA0000272279,"6,866.42",245719348
BIS,The Insolvency Service,21/02/2014,Telecoms,BUSINESS SERVICES DIRECTORATE                                                                       ,BT TELEPHONE PAYMENT CENTRE,BA0000272280,58.79,245719348
BIS,The Insolvency Service,21/02/2014,Telecoms,BUSINESS SERVICES DIRECTORATE                                                                       ,BT TELEPHONE PAYMENT CENTRE,BA0000272280,"1,736.36",245719348
BIS,The Insolvency Service,21/02/2014,Telecoms,BUSINESS SERVICES DIRECTORATE                                                                       ,BT TELEPHONE PAYMENT CENTRE,BA0000272280,"2,318.30",245719348
BIS,The Insolvency Service,21/02/2014,Telecoms,FACILITIES                                                                                          ,BT TELEPHONE PAYMENT CENTRE,BA0000272280,68.40,245719348
BIS,The Insolvency Service,21/02/2014,Telecoms,FACILITIES                                                                                          ,BT TELEPHONE PAYMENT CENTRE,BA0000272280,182.27,245719348
BIS,The Insolvency Service,21/02/2014,Telecoms,FACILITIES                                                                                          ,BT TELEPHONE PAYMENT CENTRE,BA0000272280,"1,971.54",245719348
BIS,The Insolvency Service,10/01/2014,Telecoms,FINANCE AND COMMERCIAL                                                                              ,BT TELEPHONE PAYMENT CENTRE,BA0000272436,210.31,245719348
BIS,The Insolvency Service,13/01/2014,Telecoms,FINANCE AND COMMERCIAL                                                                              ,BT TELEPHONE PAYMENT CENTRE,BA0000272436,80.44,245719348
BIS,The Insolvency Service,14/01/2014,Telecoms,FINANCE AND COMMERCIAL                                                                              ,BT TELEPHONE PAYMENT CENTRE,BA0000272436,130.84,245719348
BIS,The Insolvency Service,22/01/2014,Telecoms,FINANCE AND COMMERCIAL                                                                              ,BT TELEPHONE PAYMENT CENTRE,BA0000272436,92.85,245719348
BIS,The Insolvency Service,24/01/2014,Telecoms,FINANCE AND COMMERCIAL                                                                              ,BT TELEPHONE PAYMENT CENTRE,BA0000272436,78.18,245719348
BIS,The Insolvency Service,24/01/2014,Telecoms,FINANCE AND COMMERCIAL                                                                              ,BT TELEPHONE PAYMENT CENTRE,BA0000272436,83.32,245719348
BIS,The Insolvency Service,24/01/2014,Telecoms,FINANCE AND COMMERCIAL                                                                              ,BT TELEPHONE PAYMENT CENTRE,BA0000272436,133.46,245719348
BIS,The Insolvency Service,30/01/2014,Telecoms,FINANCE AND COMMERCIAL                                                                              ,BT TELEPHONE PAYMENT CENTRE,BA0000272436,77.27,245719348
BIS,The Insolvency Service,30/01/2014,Telecoms,FINANCE AND COMMERCIAL                                                                              ,BT TELEPHONE PAYMENT CENTRE,BA0000272436,82.81,245719348
BIS,The Insolvency Service,30/01/2014,Telecoms,FINANCE AND COMMERCIAL                                                                              ,BT TELEPHONE PAYMENT CENTRE,BA0000272436,87.48,245719348
BIS,The Insolvency Service,30/01/2014,Telecoms,FINANCE AND COMMERCIAL                                                                              ,BT TELEPHONE PAYMENT CENTRE,BA0000272436,97.90,245719348
BIS,The Insolvency Service,30/01/2014,Telecoms,FINANCE AND COMMERCIAL                                                                              ,BT TELEPHONE PAYMENT CENTRE,BA0000272436,154.88,245719348
BIS,The Insolvency Service,03/01/2014,Telecoms,INFORMATION TECHNOLOGY                                                                              ,BT TELEPHONE PAYMENT CENTRE,BA0000272436,85.53,245719348
BIS,The Insolvency Service,09/01/2014,Telecoms,INFORMATION TECHNOLOGY                                                                              ,BT TELEPHONE PAYMENT CENTRE,BA0000272436,24.88,245719348
BIS,The Insolvency Service,09/01/2014,Telecoms,INFORMATION TECHNOLOGY                                                                              ,BT TELEPHONE PAYMENT CENTRE,BA0000272436,110.10,245719348
BIS,The Insolvency Service,21/02/2014,Telecoms,INFORMATION TECHNOLOGY                                                                              ,BT TELEPHONE PAYMENT CENTRE,BA0000272280,"1,952.32",245719348
BIS,The Insolvency Service,21/02/2014,Telecoms,INVESTIGATION & ENFORCEMENT SERVICES                                                                ,BT TELEPHONE PAYMENT CENTRE,BA0000272280,68.40,245719348
BIS,The Insolvency Service,13/02/2014,Telecoms,OFFICIAL RECEIVER SERVICES                                                                          ,BT TELEPHONE PAYMENT CENTRE,BA0000272030,71.86,245719348
BIS,The Insolvency Service,13/02/2014,Telecoms,OFFICIAL RECEIVER SERVICES                                                                          ,BT TELEPHONE PAYMENT CENTRE,BA0000272038,12.59,245719348
BIS,The Insolvency Service,19/02/2014,Telecoms,OFFICIAL RECEIVER SERVICES                                                                          ,BT TELEPHONE PAYMENT CENTRE,BA0000272199,89.24,245719348
BIS,The Insolvency Service,21/02/2014,Telecoms,OFFICIAL RECEIVER SERVICES                                                                          ,BT TELEPHONE PAYMENT CENTRE,BA0000272280,-92.08,245719348
BIS,The Insolvency Service,21/02/2014,Telecoms,OFFICIAL RECEIVER SERVICES                                                                          ,BT TELEPHONE PAYMENT CENTRE,BA0000272280,68.40,245719348
BIS,The Insolvency Service,21/02/2014,Telecoms,OFFICIAL RECEIVER SERVICES                                                                          ,BT TELEPHONE PAYMENT CENTRE,BA0000272280,294.16,245719348
BIS,The Insolvency Service,21/02/2014,Telecoms,OFFICIAL RECEIVER SERVICES                                                                          ,BT TELEPHONE PAYMENT CENTRE,BA0000272280,437.31,245719348
BIS,The Insolvency Service,21/02/2014,Telecoms,OFFICIAL RECEIVER SERVICES                                                                          ,BT TELEPHONE PAYMENT CENTRE,BA0000272280,461.09,245719348
BIS,The Insolvency Service,21/02/2014,Telecoms,OFFICIAL RECEIVER SERVICES                                                                          ,BT TELEPHONE PAYMENT CENTRE,BA0000272280,525.99,245719348
BIS,The Insolvency Service,21/02/2014,Telecoms,OFFICIAL RECEIVER SERVICES                                                                          ,BT TELEPHONE PAYMENT CENTRE,BA0000272280,528.75,245719348
BIS,The Insolvency Service,21/02/2014,Telecoms,OFFICIAL RECEIVER SERVICES                                                                          ,BT TELEPHONE PAYMENT CENTRE,BA0000272280,537.31,245719348
BIS,The Insolvency Service,21/02/2014,Telecoms,OFFICIAL RECEIVER SERVICES                                                                          ,BT TELEPHONE PAYMENT CENTRE,BA0000272280,589.53,245719348
BIS,The Insolvency Service,21/02/2014,Telecoms,OFFICIAL RECEIVER SERVICES                                                                          ,BT TELEPHONE PAYMENT CENTRE,BA0000272280,610.47,245719348
BIS,The Insolvency Service,21/02/2014,Telecoms,OFFICIAL RECEIVER SERVICES                                                                          ,BT TELEPHONE PAYMENT CENTRE,BA0000272280,720.55,245719348
BIS,The Insolvency Service,21/02/2014,Telecoms,OFFICIAL RECEIVER SERVICES                                                                          ,BT TELEPHONE PAYMENT CENTRE,BA0000272280,731.18,245719348
BIS,The Insolvency Service,21/02/2014,Telecoms,OFFICIAL RECEIVER SERVICES                                                                          ,BT TELEPHONE PAYMENT CENTRE,BA0000272280,765.53,245719348
BIS,The Insolvency Service,21/02/2014,Telecoms,OFFICIAL RECEIVER SERVICES                                                                          ,BT TELEPHONE PAYMENT CENTRE,BA0000272280,775.16,245719348
BIS,The Insolvency Service,21/02/2014,Telecoms,OFFICIAL RECEIVER SERVICES                                                                          ,BT TELEPHONE PAYMENT CENTRE,BA0000272280,808.81,245719348
BIS,The Insolvency Service,21/02/2014,Telecoms,OFFICIAL RECEIVER SERVICES                                                                          ,BT TELEPHONE PAYMENT CENTRE,BA0000272280,831.24,245719348
BIS,The Insolvency Service,21/02/2014,Telecoms,OFFICIAL RECEIVER SERVICES                                                                          ,BT TELEPHONE PAYMENT CENTRE,BA0000272280,883.60,245719348
BIS,The Insolvency Service,21/02/2014,Telecoms,OFFICIAL RECEIVER SERVICES                                                                          ,BT TELEPHONE PAYMENT CENTRE,BA0000272280,925.21,245719348
BIS,The Insolvency Service,21/02/2014,Telecoms,OFFICIAL RECEIVER SERVICES                                                                          ,BT TELEPHONE PAYMENT CENTRE,BA0000272280,938.41,245719348
BIS,The Insolvency Service,21/02/2014,Telecoms,OFFICIAL RECEIVER SERVICES                                                                          ,BT TELEPHONE PAYMENT CENTRE,BA0000272280,992.64,245719348
BIS,The Insolvency Service,21/02/2014,Telecoms,OFFICIAL RECEIVER SERVICES                                                                          ,BT TELEPHONE PAYMENT CENTRE,BA0000272280,"1,163.95",245719348
BIS,The Insolvency Service,21/02/2014,Telecoms,OFFICIAL RECEIVER SERVICES                                                                          ,BT TELEPHONE PAYMENT CENTRE,BA0000272280,"1,410.81",245719348
BIS,The Insolvency Service,21/02/2014,Telecoms,OFFICIAL RECEIVER SERVICES                                                                          ,BT TELEPHONE PAYMENT CENTRE,BA0000272280,"1,605.86",245719348
BIS,The Insolvency Service,21/02/2014,Telecoms,OFFICIAL RECEIVER SERVICES                                                                          ,BT TELEPHONE PAYMENT CENTRE,BA0000272280,"1,649.68",245719348
BIS,The Insolvency Service,21/02/2014,Telecoms,OFFICIAL RECEIVER SERVICES                                                                          ,BT TELEPHONE PAYMENT CENTRE,BA0000272280,"1,835.31",245719348
BIS,The Insolvency Service,21/02/2014,Telecoms,OFFICIAL RECEIVER SERVICES                                                                          ,BT TELEPHONE PAYMENT CENTRE,BA0000272280,"2,581.44",245719348
BIS,The Insolvency Service,21/02/2014,Telecoms,OFFICIAL RECEIVER SERVICES                                                                          ,BT TELEPHONE PAYMENT CENTRE,BA0000272280,"3,507.28",245719348
BIS,The Insolvency Service,19/02/2014,Investigation and Enforcement Costs,INVESTIGATION & ENFORCEMENT SERVICES                                                                ,BTG GLOBAL RISK PARTNERS,BA0000272207,"1,051.00",880996072
BIS,The Insolvency Service,17/02/2014,Investigation and Enforcement Costs,INVESTIGATION & ENFORCEMENT SERVICES                                                                ,BURNESS PAULL & WILLIAMSONS SOLICITORS,BA0000272108,39.00,268398111
BIS,The Insolvency Service,17/02/2014,Investigation and Enforcement Costs,INVESTIGATION & ENFORCEMENT SERVICES                                                                ,BURNESS PAULL & WILLIAMSONS SOLICITORS,BA0000272108,"41,028.85",268398111
BIS,The Insolvency Service,17/02/2014,Investigation and Enforcement Costs,INVESTIGATION & ENFORCEMENT SERVICES                                                                ,BURNESS PAULL & WILLIAMSONS SOLICITORS,BA0000272108,659.50,268398111
BIS,The Insolvency Service,17/02/2014,Investigation and Enforcement Costs,INVESTIGATION & ENFORCEMENT SERVICES                                                                ,BURNESS PAULL & WILLIAMSONS SOLICITORS,BA0000272108,"13,479.50",268398111
BIS,The Insolvency Service,17/02/2014,Investigation and Enforcement Costs,INVESTIGATION & ENFORCEMENT SERVICES                                                                ,BURNESS PAULL & WILLIAMSONS SOLICITORS,BA0000272108,450.00,268398111
BIS,The Insolvency Service,17/02/2014,Investigation and Enforcement Costs,INVESTIGATION & ENFORCEMENT SERVICES                                                                ,BURNESS PAULL & WILLIAMSONS SOLICITORS,BA0000272108,"2,339.45",268398111
BIS,The Insolvency Service,07/02/2014,Accommodation,ESTATES,C NICKERSON,BA0000271861,15.00,
BIS,The Insolvency Service,17/02/2014,Accommodation,ESTATES,C NICKERSON,BA0000272082,15.00,
BIS,The Insolvency Service,27/02/2014,Department for Business Innovation and Skills,PEOPLE & CAPABILITY                                                                                 ,CABINET OFFICE,BA0000272458,"1,382.40",888801080
BIS,The Insolvency Service,27/02/2014,Department for Business Innovation and Skills,PEOPLE & CAPABILITY                                                                                 ,CABINET OFFICE,BA0000272459,"1,835.76",888801080
BIS,The Insolvency Service,03/02/2014,Training Costs,PEOPLE & CAPABILITY                                                                                 ,CAPITA BUSINESS SERVICES LTD,BA0000271702,197.00,618184140
BIS,The Insolvency Service,03/02/2014,Training Costs,PEOPLE & CAPABILITY                                                                                 ,CAPITA BUSINESS SERVICES LTD,BA0000271703,125.00,618184140
BIS,The Insolvency Service,05/02/2014,Training Costs,PEOPLE & CAPABILITY                                                                                 ,CAPITA BUSINESS SERVICES LTD,BA0000271753,206.00,618184140
BIS,The Insolvency Service,11/02/2014,Training Costs,PEOPLE & CAPABILITY                                                                                 ,CAPITA BUSINESS SERVICES LTD,BA0000271937,883.55,618184140
BIS,The Insolvency Service,11/02/2014,Training Costs,PEOPLE & CAPABILITY                                                                                 ,CAPITA BUSINESS SERVICES LTD,BA0000271938,883.55,618184140
BIS,The Insolvency Service,11/02/2014,Training Costs,PEOPLE & CAPABILITY                                                                                 ,CAPITA BUSINESS SERVICES LTD,BA0000271960,206.00,618184140
BIS,The Insolvency Service,13/02/2014,Training Costs,PEOPLE & CAPABILITY                                                                                 ,CAPITA BUSINESS SERVICES LTD,BA0000272056,126.00,618184140
BIS,The Insolvency Service,19/02/2014,Training Costs,PEOPLE & CAPABILITY                                                                                 ,CAPITA BUSINESS SERVICES LTD,BA0000272182,197.00,618184140
BIS,The Insolvency Service,21/02/2014,Training Costs,PEOPLE & CAPABILITY                                                                                 ,CAPITA BUSINESS SERVICES LTD,BA0000272266,550.00,618184140
BIS,The Insolvency Service,21/02/2014,Training Costs,PEOPLE & CAPABILITY                                                                                 ,CAPITA BUSINESS SERVICES LTD,BA0000272267,228.00,618184140
BIS,The Insolvency Service,21/02/2014,Training Costs,PEOPLE & CAPABILITY                                                                                 ,CAPITA BUSINESS SERVICES LTD,BA0000272268,134.00,618184140
BIS,The Insolvency Service,03/02/2014,Training Costs,"PLANNING, PERFORMANCE & PROJECTS                                                                    ",CAPITA BUSINESS SERVICES LTD,BA0000271577,170.00,618184140
BIS,The Insolvency Service,03/02/2014,Training Costs,"PLANNING, PERFORMANCE & PROJECTS                                                                    ",CAPITA BUSINESS SERVICES LTD,BA0000271583,170.00,618184140
BIS,The Insolvency Service,11/02/2014,Training Costs,"PLANNING, PERFORMANCE & PROJECTS                                                                    ",CAPITA BUSINESS SERVICES LTD,BA0000271959,170.00,618184140
BIS,The Insolvency Service,19/02/2014,Training Costs,"PLANNING, PERFORMANCE & PROJECTS                                                                    ",CAPITA BUSINESS SERVICES LTD,BA0000272168,"3,292.00",618184140
BIS,The Insolvency Service,03/02/2014,Agency Workers,"PLANNING, PERFORMANCE & PROJECTS                                                                    ",CAPITA RESOURCING LTD,BA0000271678,"2,072.52",618184140
BIS,The Insolvency Service,07/02/2014,Agency Workers,"PLANNING, PERFORMANCE & PROJECTS                                                                    ",CAPITA RESOURCING LTD,BA0000271827,"7,800.00",618184140
BIS,The Insolvency Service,07/02/2014,Agency Workers,"PLANNING, PERFORMANCE & PROJECTS                                                                    ",CAPITA RESOURCING LTD,BA0000271855,155.52,618184140
BIS,The Insolvency Service,11/02/2014,Agency Workers,"PLANNING, PERFORMANCE & PROJECTS                                                                    ",CAPITA RESOURCING LTD,BA0000271939,"2,072.52",618184140
BIS,The Insolvency Service,13/02/2014,Agency Workers,"PLANNING, PERFORMANCE & PROJECTS                                                                    ",CAPITA RESOURCING LTD,BA0000272014,"2,072.52",618184140
BIS,The Insolvency Service,21/02/2014,Agency Workers,"PLANNING, PERFORMANCE & PROJECTS                                                                    ",CAPITA RESOURCING LTD,BA0000272251,"2,072.52",618184140
BIS,The Insolvency Service,28/02/2014,Agency Workers,"PLANNING, PERFORMANCE & PROJECTS                                                                    ",CAPITA RESOURCING LTD,BA0000272534,"7,800.00",618184140
BIS,The Insolvency Service,28/02/2014,Agency Workers,"PLANNING, PERFORMANCE & PROJECTS                                                                    ",CAPITA RESOURCING LTD,BA0000272556,"3,900.00",618184140
BIS,The Insolvency Service,24/02/2014,Employee Related Costs,PEOPLE & CAPABILITY                                                                                 ,CARE FIRST,BA0000272327,"1,551.42",
BIS,The Insolvency Service,11/02/2014,Employee Related Costs,OFFICIAL RECEIVER SERVICES                                                                          ,CARTUS FINANCING LIMITED,BA0000271940,"1,239.63",768489458
BIS,The Insolvency Service,27/02/2014,Employee Related Costs,EXTERNAL AFFAIRS                                                                                    ,CARTUS FUNDING LIMITED,BA0000272465,"1,380.50",768489458
BIS,The Insolvency Service,27/02/2014,Employee Related Costs,INVESTIGATION & ENFORCEMENT SERVICES                                                                ,CARTUS FUNDING LIMITED,BA0000272463,142.70,768489458
BIS,The Insolvency Service,28/02/2014,Employee Related Costs,OFFICIAL RECEIVER SERVICES                                                                          ,CARTUS FUNDING LIMITED,BA0000272545,383.00,768489458
BIS,The Insolvency Service,24/02/2014,Accommodation,ESTATES,CBRE LIMITED,BA0000272323,"1,363.64",
BIS,The Insolvency Service,24/02/2014,Accommodation,ESTATES,CBRE LIMITED,BA0000272324,"1,143.40",
BIS,The Insolvency Service,24/02/2014,Accommodation,ESTATES,CBRE LIMITED,BA0000272325,"1,363.63",
BIS,The Insolvency Service,24/02/2014,Accommodation,ESTATES,CBRE LIMITED,BA0000272326,"1,143.40",
BIS,The Insolvency Service,21/02/2014,Accommodation,ESTATES,CBRE Ltd,BA0000272250,"1,595.81",
BIS,The Insolvency Service,26/02/2014,Accommodation,ESTATES,CBRE PROPERTY AND ASSET MANAGEMENT,BA0000272412,"1,781.18",
BIS,The Insolvency Service,24/02/2014,Computer and IT Systems,INVESTIGATION & ENFORCEMENT SERVICES                                                                ,CCL FORENSICS,BA0000272315,"4,026.24",
BIS,The Insolvency Service,07/02/2014,Computer and IT Systems,INFORMATION TECHNOLOGY                                                                              ,CERTES COMPUTING LIMITED,BA0000271837,"9,865.68",
BIS,The Insolvency Service,07/02/2014,Accommodation,ESTATES,CGM LANDSCAPES (COMPLETE GROUNDS MAINTENANCE LTD),BA0000271854,102.00,943560027
BIS,The Insolvency Service,11/02/2014,Travel and Subsistence,BUSINESS SERVICES DIRECTORATE                                                                       ,CITY CABS (EDINBURGH) LTD,BA0000271957,100.97,270679436
BIS,The Insolvency Service,07/02/2014,Accommodation,ESTATES,CITY OF PLYMOUTH,BA0000271849,677.47,
BIS,The Insolvency Service,27/02/2014,Conferences,INVESTIGATION & ENFORCEMENT SERVICES                                                                ,CITY OF WESTMINSTER                                         ,BA0000272469,490.00,239291642
BIS,The Insolvency Service,13/02/2014,Postage,INFORMATION TECHNOLOGY                                                                              ,CITY SPRINT UK LTD,BA0000272036,124.79,
BIS,The Insolvency Service,15/01/2014,Insolvency Case Related Costs,OFFICIAL RECEIVER SERVICES                                                                          ,CIVIL & FAMILY COURT                                        ,BA0000272436,100.00,
BIS,The Insolvency Service,19/02/2014,Investigation and Enforcement Costs,INVESTIGATION & ENFORCEMENT SERVICES                                                                ,CLARKE WILLMOTT SOLICITORS,BA0000272173,552.25,129913060
BIS,The Insolvency Service,28/02/2014,Telecoms,BUSINESS SERVICES DIRECTORATE                                                                       ,CLOUDXL,BA0000272537,"2,052.00",897386841
BIS,The Insolvency Service,09/01/2014,Insolvency Case Related Costs,OFFICIAL RECEIVER SERVICES                                                                          ,COMBINED COURT                                              ,BA0000272436,100.00,
BIS,The Insolvency Service,05/02/2014,Insolvency Case Related Costs,INVESTIGATION & ENFORCEMENT SERVICES                                                                ,COMPANIES HOUSE,BA0000271749,986.00,GD255
BIS,The Insolvency Service,05/02/2014,Insolvency Case Related Costs,INVESTIGATION & ENFORCEMENT SERVICES                                                                ,COMPANIES HOUSE,BA0000271752,993.00,GD255
BIS,The Insolvency Service,07/02/2014,Insolvency Case Related Costs,INVESTIGATION & ENFORCEMENT SERVICES                                                                ,COMPANIES HOUSE,BA0000271840,55.00,GD255
BIS,The Insolvency Service,07/02/2014,Insolvency Case Related Costs,INVESTIGATION & ENFORCEMENT SERVICES                                                                ,COMPANIES HOUSE,BA0000271838,532.00,GD255
BIS,The Insolvency Service,13/02/2014,Insolvency Case Related Costs,Official Receiver Operations - Central and Eastern Region,COMPANIES HOUSE,BA0000272033,74.00,GD255
BIS,The Insolvency Service,07/02/2014,Insolvency Case Related Costs,OFFICIAL RECEIVER SERVICES                                                                          ,COMPANIES HOUSE,BA0000271851,-14.00,GD255
BIS,The Insolvency Service,07/02/2014,Insolvency Case Related Costs,OFFICIAL RECEIVER SERVICES                                                                          ,COMPANIES HOUSE,BA0000271852,-4.00,GD255
BIS,The Insolvency Service,07/02/2014,Insolvency Case Related Costs,OFFICIAL RECEIVER SERVICES                                                                          ,COMPANIES HOUSE,BA0000271859,262.00,GD255
BIS,The Insolvency Service,07/02/2014,Insolvency Case Related Costs,OFFICIAL RECEIVER SERVICES                                                                          ,COMPANIES HOUSE,BA0000271864,90.00,GD255
BIS,The Insolvency Service,07/02/2014,Insolvency Case Related Costs,OFFICIAL RECEIVER SERVICES                                                                          ,COMPANIES HOUSE,BA0000271865,66.00,GD255
BIS,The Insolvency Service,11/02/2014,Insolvency Case Related Costs,OFFICIAL RECEIVER SERVICES                                                                          ,COMPANIES HOUSE,BA0000271891,77.00,GD255
BIS,The Insolvency Service,11/02/2014,Insolvency Case Related Costs,OFFICIAL RECEIVER SERVICES                                                                          ,COMPANIES HOUSE,BA0000271894,89.00,GD255
BIS,The Insolvency Service,11/02/2014,Insolvency Case Related Costs,OFFICIAL RECEIVER SERVICES                                                                          ,COMPANIES HOUSE,BA0000271908,35.00,GD255
BIS,The Insolvency Service,11/02/2014,Insolvency Case Related Costs,OFFICIAL RECEIVER SERVICES                                                                          ,COMPANIES HOUSE,BA0000271961,32.00,GD255
BIS,The Insolvency Service,11/02/2014,Insolvency Case Related Costs,OFFICIAL RECEIVER SERVICES                                                                          ,COMPANIES HOUSE,BA0000271962,50.00,GD255
BIS,The Insolvency Service,13/02/2014,Insolvency Case Related Costs,OFFICIAL RECEIVER SERVICES                                                                          ,COMPANIES HOUSE,BA0000272041,74.00,GD255
BIS,The Insolvency Service,13/02/2014,Insolvency Case Related Costs,OFFICIAL RECEIVER SERVICES                                                                          ,COMPANIES HOUSE,BA0000272047,403.00,GD255
BIS,The Insolvency Service,13/02/2014,Insolvency Case Related Costs,OFFICIAL RECEIVER SERVICES                                                                          ,COMPANIES HOUSE,BA0000272048,41.00,GD255
BIS,The Insolvency Service,13/02/2014,Insolvency Case Related Costs,OFFICIAL RECEIVER SERVICES                                                                          ,COMPANIES HOUSE,BA0000272049,33.00,GD255
BIS,The Insolvency Service,13/02/2014,Insolvency Case Related Costs,OFFICIAL RECEIVER SERVICES                                                                          ,COMPANIES HOUSE,BA0000272058,50.00,GD255
BIS,The Insolvency Service,13/02/2014,Insolvency Case Related Costs,OFFICIAL RECEIVER SERVICES                                                                          ,COMPANIES HOUSE,BA0000272060,47.00,GD255
BIS,The Insolvency Service,13/02/2014,Insolvency Case Related Costs,OFFICIAL RECEIVER SERVICES                                                                          ,COMPANIES HOUSE,BA0000272037,39.00,GD255
BIS,The Insolvency Service,13/02/2014,Insolvency Case Related Costs,OFFICIAL RECEIVER SERVICES                                                                          ,COMPANIES HOUSE,BA0000272039,141.00,GD255
BIS,The Insolvency Service,13/02/2014,Insolvency Case Related Costs,OFFICIAL RECEIVER SERVICES                                                                          ,COMPANIES HOUSE,BA0000272040,62.00,GD255
BIS,The Insolvency Service,13/02/2014,Insolvency Case Related Costs,OFFICIAL RECEIVER SERVICES                                                                          ,COMPANIES HOUSE,BA0000272062,83.00,GD255
BIS,The Insolvency Service,17/02/2014,Insolvency Case Related Costs,OFFICIAL RECEIVER SERVICES                                                                          ,COMPANIES HOUSE,BA0000272133,37.00,GD255
BIS,The Insolvency Service,17/02/2014,Insolvency Case Related Costs,OFFICIAL RECEIVER SERVICES                                                                          ,COMPANIES HOUSE,BA0000272079,63.00,GD255
BIS,The Insolvency Service,17/02/2014,Insolvency Case Related Costs,OFFICIAL RECEIVER SERVICES                                                                          ,COMPANIES HOUSE,BA0000272080,15.00,GD255
BIS,The Insolvency Service,17/02/2014,Insolvency Case Related Costs,OFFICIAL RECEIVER SERVICES                                                                          ,COMPANIES HOUSE,BA0000272138,79.00,GD255
BIS,The Insolvency Service,19/02/2014,Insolvency Case Related Costs,OFFICIAL RECEIVER SERVICES                                                                          ,COMPANIES HOUSE,BA0000272081,24.00,GD255
BIS,The Insolvency Service,19/02/2014,Insolvency Case Related Costs,OFFICIAL RECEIVER SERVICES                                                                          ,COMPANIES HOUSE,BA0000272128,18.00,GD255
BIS,The Insolvency Service,19/02/2014,Insolvency Case Related Costs,OFFICIAL RECEIVER SERVICES                                                                          ,COMPANIES HOUSE,BA0000272192,59.00,GD255
BIS,The Insolvency Service,19/02/2014,Insolvency Case Related Costs,OFFICIAL RECEIVER SERVICES                                                                          ,COMPANIES HOUSE,BA0000272193,48.00,GD255
BIS,The Insolvency Service,19/02/2014,Insolvency Case Related Costs,OFFICIAL RECEIVER SERVICES                                                                          ,COMPANIES HOUSE,BA0000272194,57.00,GD255
BIS,The Insolvency Service,19/02/2014,Insolvency Case Related Costs,OFFICIAL RECEIVER SERVICES                                                                          ,COMPANIES HOUSE,BA0000272195,68.00,GD255
BIS,The Insolvency Service,21/02/2014,Insolvency Case Related Costs,OFFICIAL RECEIVER SERVICES                                                                          ,COMPANIES HOUSE,BA0000272262,22.00,GD255
BIS,The Insolvency Service,21/02/2014,Insolvency Case Related Costs,OFFICIAL RECEIVER SERVICES                                                                          ,COMPANIES HOUSE,BA0000272263,77.00,GD255
BIS,The Insolvency Service,28/02/2014,Insolvency Case Related Costs,OFFICIAL RECEIVER SERVICES                                                                          ,COMPANIES HOUSE,BA0000272564,247.00,GD255
BIS,The Insolvency Service,28/02/2014,Insolvency Case Related Costs,OFFICIAL RECEIVER SERVICES                                                                          ,COMPANIES HOUSE,BA0000272561,80.00,GD255
BIS,The Insolvency Service,11/02/2014,Telecoms,OFFICIAL RECEIVER SERVICES                                                                          ,COMPANIES HOUSE,BA0000271893,503.81,GD255
BIS,The Insolvency Service,07/02/2014,Employee Related Costs,"PLANNING, PERFORMANCE & PROJECTS                                                                    ",CONFERENCE ASTON                                            ,BA0000271870,"3,457.21",849741973
BIS,The Insolvency Service,17/02/2014,Accommodation,ESTATES,CORONA ENERGY RETAIL 4 LIMITED,BA0000272075,527.33,714232961
BIS,The Insolvency Service,17/02/2014,Accommodation,ESTATES,CORONA ENERGY RETAIL 4 LIMITED,BA0000272076,310.64,714232961
BIS,The Insolvency Service,17/02/2014,Accommodation,ESTATES,CORONA ENERGY RETAIL 4 LIMITED,BA0000272077,212.15,714232961
BIS,The Insolvency Service,17/02/2014,Accommodation,ESTATES,CORONA ENERGY RETAIL 4 LIMITED,BA0000272147,228.73,714232961
BIS,The Insolvency Service,03/02/2014,Insolvency Case Related Costs,BUSINESS SERVICES DIRECTORATE                                                                       ,CRANFIELD BUSINESS RECOVERY LTD.                            ,BA0000271695,"8,827.20",
BIS,The Insolvency Service,24/02/2014,Accommodation,ESTATES,DEPARTMENT FOR WORK & PENSIONS,BA0000272308,415.07,888815554
BIS,The Insolvency Service,24/02/2014,Accommodation,ESTATES,DEPARTMENT FOR WORK & PENSIONS,BA0000272308,249.67,888815554
BIS,The Insolvency Service,19/02/2014,Postage,OFFICIAL RECEIVER SERVICES                                                                          ,DHL INTERNATIONAL (UK) LTD,BA0000272188,47.32,751812341
BIS,The Insolvency Service,09/01/2014,Office Supplies and Services,FACILITIES                                                                                          ,DIGITAL ID LTD,BA0000272436,158.76,
BIS,The Insolvency Service,15/01/2014,Travel and Subsistence,"PLANNING, PERFORMANCE & PROJECTS                                                                    ",DRAKE CIRCUS LP,BA0000272436,12.00,
BIS,The Insolvency Service,11/02/2014,Postage,OFFICIAL RECEIVER SERVICES                                                                          ,DX NETWORK SERVICES LTD,BA0000271902,"1,200.00",849741385
BIS,The Insolvency Service,11/02/2014,Postage,OFFICIAL RECEIVER SERVICES                                                                          ,DX NETWORK SERVICES LTD,BA0000271927,35.03,849741385
BIS,The Insolvency Service,11/02/2014,Postage,OFFICIAL RECEIVER SERVICES                                                                          ,DX NETWORK SERVICES LTD,BA0000271927,49.84,849741385
BIS,The Insolvency Service,11/02/2014,Postage,OFFICIAL RECEIVER SERVICES                                                                          ,DX NETWORK SERVICES LTD,BA0000271927,62.87,849741385
BIS,The Insolvency Service,11/02/2014,Postage,OFFICIAL RECEIVER SERVICES                                                                          ,DX NETWORK SERVICES LTD,BA0000271927,70.19,849741385
BIS,The Insolvency Service,11/02/2014,Postage,OFFICIAL RECEIVER SERVICES                                                                          ,DX NETWORK SERVICES LTD,BA0000271927,76.57,849741385
BIS,The Insolvency Service,11/02/2014,Postage,OFFICIAL RECEIVER SERVICES                                                                          ,DX NETWORK SERVICES LTD,BA0000271927,117.73,849741385
BIS,The Insolvency Service,11/02/2014,Postage,OFFICIAL RECEIVER SERVICES                                                                          ,DX NETWORK SERVICES LTD,BA0000271927,126.40,849741385
BIS,The Insolvency Service,11/02/2014,Postage,OFFICIAL RECEIVER SERVICES                                                                          ,DX NETWORK SERVICES LTD,BA0000271927,142.54,849741385
BIS,The Insolvency Service,11/02/2014,Postage,OFFICIAL RECEIVER SERVICES                                                                          ,DX NETWORK SERVICES LTD,BA0000271927,151.33,849741385
BIS,The Insolvency Service,11/02/2014,Postage,OFFICIAL RECEIVER SERVICES                                                                          ,DX NETWORK SERVICES LTD,BA0000271927,174.78,849741385
BIS,The Insolvency Service,11/02/2014,Postage,OFFICIAL RECEIVER SERVICES                                                                          ,DX NETWORK SERVICES LTD,BA0000271927,174.96,849741385
BIS,The Insolvency Service,11/02/2014,Postage,OFFICIAL RECEIVER SERVICES                                                                          ,DX NETWORK SERVICES LTD,BA0000271927,177.65,849741385
BIS,The Insolvency Service,11/02/2014,Postage,OFFICIAL RECEIVER SERVICES                                                                          ,DX NETWORK SERVICES LTD,BA0000271927,181.05,849741385
BIS,The Insolvency Service,11/02/2014,Postage,OFFICIAL RECEIVER SERVICES                                                                          ,DX NETWORK SERVICES LTD,BA0000271927,182.92,849741385
BIS,The Insolvency Service,11/02/2014,Postage,OFFICIAL RECEIVER SERVICES                                                                          ,DX NETWORK SERVICES LTD,BA0000271927,191.88,849741385
BIS,The Insolvency Service,11/02/2014,Postage,OFFICIAL RECEIVER SERVICES                                                                          ,DX NETWORK SERVICES LTD,BA0000271927,197.17,849741385
BIS,The Insolvency Service,11/02/2014,Postage,OFFICIAL RECEIVER SERVICES                                                                          ,DX NETWORK SERVICES LTD,BA0000271927,203.63,849741385
BIS,The Insolvency Service,11/02/2014,Postage,OFFICIAL RECEIVER SERVICES                                                                          ,DX NETWORK SERVICES LTD,BA0000271927,204.35,849741385
BIS,The Insolvency Service,11/02/2014,Postage,OFFICIAL RECEIVER SERVICES                                                                          ,DX NETWORK SERVICES LTD,BA0000271927,216.03,849741385
BIS,The Insolvency Service,11/02/2014,Postage,OFFICIAL RECEIVER SERVICES                                                                          ,DX NETWORK SERVICES LTD,BA0000271927,234.25,849741385
BIS,The Insolvency Service,11/02/2014,Postage,OFFICIAL RECEIVER SERVICES                                                                          ,DX NETWORK SERVICES LTD,BA0000271927,246.65,849741385
BIS,The Insolvency Service,11/02/2014,Postage,OFFICIAL RECEIVER SERVICES                                                                          ,DX NETWORK SERVICES LTD,BA0000271927,259.67,849741385
BIS,The Insolvency Service,11/02/2014,Postage,OFFICIAL RECEIVER SERVICES                                                                          ,DX NETWORK SERVICES LTD,BA0000271927,262.37,849741385
BIS,The Insolvency Service,11/02/2014,Postage,OFFICIAL RECEIVER SERVICES                                                                          ,DX NETWORK SERVICES LTD,BA0000271927,294.02,849741385
BIS,The Insolvency Service,11/02/2014,Postage,OFFICIAL RECEIVER SERVICES                                                                          ,DX NETWORK SERVICES LTD,BA0000271927,301.50,849741385
BIS,The Insolvency Service,11/02/2014,Postage,OFFICIAL RECEIVER SERVICES                                                                          ,DX NETWORK SERVICES LTD,BA0000271927,304.64,849741385
BIS,The Insolvency Service,11/02/2014,Postage,OFFICIAL RECEIVER SERVICES                                                                          ,DX NETWORK SERVICES LTD,BA0000271927,306.09,849741385
BIS,The Insolvency Service,11/02/2014,Postage,OFFICIAL RECEIVER SERVICES                                                                          ,DX NETWORK SERVICES LTD,BA0000271927,306.33,849741385
BIS,The Insolvency Service,11/02/2014,Postage,OFFICIAL RECEIVER SERVICES                                                                          ,DX NETWORK SERVICES LTD,BA0000271927,320.82,849741385
BIS,The Insolvency Service,11/02/2014,Postage,OFFICIAL RECEIVER SERVICES                                                                          ,DX NETWORK SERVICES LTD,BA0000271927,499.02,849741385
BIS,The Insolvency Service,24/02/2014,Postage,OFFICIAL RECEIVER SERVICES                                                                          ,DX NETWORK SERVICES LTD,BA0000272314,"3,066.66",849741385
BIS,The Insolvency Service,03/02/2014,Accommodation,ESTATES,E.ON,BA0000271682,"1,472.20",559097889
BIS,The Insolvency Service,05/02/2014,Accommodation,ESTATES,E.ON,BA0000271744,"2,135.84",559097889
BIS,The Insolvency Service,07/01/2014,Travel and Subsistence,OFFICIAL RECEIVER SERVICES                                                                          ,EAST MIDLANDS TRAINS,BA0000272436,8.80,
BIS,The Insolvency Service,13/01/2014,Travel and Subsistence,OFFICIAL RECEIVER SERVICES                                                                          ,EAST MIDLANDS TRAINS,BA0000272436,16.10,
BIS,The Insolvency Service,16/01/2014,Travel and Subsistence,OFFICIAL RECEIVER SERVICES                                                                          ,EAST MIDLANDS TRAINS,BA0000272436,14.60,
BIS,The Insolvency Service,20/01/2014,Travel and Subsistence,OFFICIAL RECEIVER SERVICES                                                                          ,EAST MIDLANDS TRAINS,BA0000272436,9.00,
BIS,The Insolvency Service,06/01/2014,Travel and Subsistence,FINANCE AND COMMERCIAL,EASYJET,BA0000272436,149.51,
BIS,The Insolvency Service,10/01/2014,Travel and Subsistence,FINANCE AND COMMERCIAL,EASYJET,BA0000272436,91.37,
BIS,The Insolvency Service,15/01/2014,Travel and Subsistence,FINANCE AND COMMERCIAL,EASYJET,BA0000272436,87.29,
BIS,The Insolvency Service,23/01/2014,Travel and Subsistence,FINANCE AND COMMERCIAL,EASYJET,BA0000272436,92.39,
BIS,The Insolvency Service,24/01/2014,Travel and Subsistence,FINANCE AND COMMERCIAL,EASYJET,BA0000272436,100.55,
BIS,The Insolvency Service,29/01/2014,Office Machinery,FINANCE AND COMMERCIAL,EBUYER (UK) LIMITED,BA0000272436,15.99,836592300
BIS,The Insolvency Service,30/01/2014,Office Machinery,FINANCE AND COMMERCIAL                                                                              ,EBUYER (UK) LIMITED,BA0000272436,231.68,836592300
BIS,The Insolvency Service,03/02/2014,Accommodation,BUSINESS SERVICES DIRECTORATE                                                                       ,EC GROUP,BA0000271689,978.37,235525471
BIS,The Insolvency Service,24/02/2014,Accommodation,BUSINESS SERVICES DIRECTORATE                                                                       ,EC GROUP,BA0000272330,445.31,235525471
BIS,The Insolvency Service,27/01/2014,Travel and Subsistence,BUSINESS SERVICES DIRECTORATE                                                                       ,EDINBURGH AIRPORT CAR PARK,BA0000272436,20.07,
BIS,The Insolvency Service,27/02/2014,Accommodation,BUSINESS SERVICES DIRECTORATE                                                                       ,EDM - EDM Group Ltd,BA0000272445,279.79,644894202
BIS,The Insolvency Service,27/02/2014,Accommodation,BUSINESS SERVICES DIRECTORATE                                                                       ,EDM - EDM Group Ltd,BA0000272446,204.18,644894202
BIS,The Insolvency Service,27/02/2014,Accommodation,BUSINESS SERVICES DIRECTORATE                                                                       ,EDM - EDM Group Ltd,BA0000272447,"1,184.75",644894202
BIS,The Insolvency Service,27/02/2014,Accommodation,BUSINESS SERVICES DIRECTORATE                                                                       ,EDM - EDM Group Ltd,BA0000272455,"1,060.48",644894202
BIS,The Insolvency Service,13/02/2014,Accommodation,CUSTOMER AND COMMUNICATIONS                                                                         ,EDM - EDM Group Ltd,BA0000272022,"42,449.46",644894202
BIS,The Insolvency Service,27/02/2014,Accommodation,CUSTOMER AND COMMUNICATIONS                                                                         ,EDM - EDM Group Ltd,BA0000272445,1.90,644894202
BIS,The Insolvency Service,27/02/2014,Accommodation,CUSTOMER AND COMMUNICATIONS                                                                         ,EDM - EDM Group Ltd,BA0000272446,1.39,644894202
BIS,The Insolvency Service,27/02/2014,Accommodation,CUSTOMER AND COMMUNICATIONS                                                                         ,EDM - EDM Group Ltd,BA0000272447,8.02,644894202
BIS,The Insolvency Service,27/02/2014,Accommodation,CUSTOMER AND COMMUNICATIONS                                                                         ,EDM - EDM Group Ltd,BA0000272455,7.11,644894202
BIS,The Insolvency Service,27/02/2014,Accommodation,EXTERNAL AFFAIRS                                                                                    ,EDM - EDM Group Ltd,BA0000272445,275.05,644894202
BIS,The Insolvency Service,27/02/2014,Accommodation,EXTERNAL AFFAIRS                                                                                    ,EDM - EDM Group Ltd,BA0000272446,200.73,644894202
BIS,The Insolvency Service,27/02/2014,Accommodation,EXTERNAL AFFAIRS                                                                                    ,EDM - EDM Group Ltd,BA0000272447,"1,164.69",644894202
BIS,The Insolvency Service,27/02/2014,Accommodation,EXTERNAL AFFAIRS                                                                                    ,EDM - EDM Group Ltd,BA0000272455,66.43,644894202
BIS,The Insolvency Service,27/02/2014,Accommodation,INFORMATION TECHNOLOGY                                                                              ,EDM - EDM Group Ltd,BA0000272445,128.59,644894202
BIS,The Insolvency Service,27/02/2014,Accommodation,INFORMATION TECHNOLOGY                                                                              ,EDM - EDM Group Ltd,BA0000272446,93.84,644894202
BIS,The Insolvency Service,27/02/2014,Accommodation,INFORMATION TECHNOLOGY                                                                              ,EDM - EDM Group Ltd,BA0000272447,544.51,644894202
BIS,The Insolvency Service,27/02/2014,Accommodation,INFORMATION TECHNOLOGY                                                                              ,EDM - EDM Group Ltd,BA0000272455,92.52,644894202
BIS,The Insolvency Service,07/02/2014,Accommodation,INVESTIGATION & ENFORCEMENT SERVICES                                                                ,EDM - EDM Group Ltd,BA0000271839,519.95,644894202
BIS,The Insolvency Service,27/02/2014,Accommodation,INVESTIGATION & ENFORCEMENT SERVICES                                                                ,EDM - EDM Group Ltd,BA0000272445,641.88,644894202
BIS,The Insolvency Service,27/02/2014,Accommodation,INVESTIGATION & ENFORCEMENT SERVICES                                                                ,EDM - EDM Group Ltd,BA0000272446,468.43,644894202
BIS,The Insolvency Service,27/02/2014,Accommodation,INVESTIGATION & ENFORCEMENT SERVICES                                                                ,EDM - EDM Group Ltd,BA0000272447,"2,717.98",644894202
BIS,The Insolvency Service,27/02/2014,Accommodation,INVESTIGATION & ENFORCEMENT SERVICES                                                                ,EDM - EDM Group Ltd,BA0000272455,"1,886.08",644894202
BIS,The Insolvency Service,27/02/2014,Accommodation,OFFICIAL RECEIVER SERVICES                                                                          ,EDM - EDM Group Ltd,BA0000272445,9.58,644894202
BIS,The Insolvency Service,27/02/2014,Accommodation,OFFICIAL RECEIVER SERVICES                                                                          ,EDM - EDM Group Ltd,BA0000272446,6.98,644894202
BIS,The Insolvency Service,27/02/2014,Accommodation,OFFICIAL RECEIVER SERVICES                                                                          ,EDM - EDM Group Ltd,BA0000272447,40.58,644894202
BIS,The Insolvency Service,27/02/2014,Accommodation,OFFICIAL RECEIVER SERVICES                                                                          ,EDM - EDM Group Ltd,BA0000272455,"24,677.05",644894202
BIS,The Insolvency Service,27/02/2014,Accommodation,PEOPLE & CAPABILITY                                                                                 ,EDM - EDM Group Ltd,BA0000272445,18.41,644894202
BIS,The Insolvency Service,27/02/2014,Accommodation,PEOPLE & CAPABILITY                                                                                 ,EDM - EDM Group Ltd,BA0000272446,13.43,644894202
BIS,The Insolvency Service,27/02/2014,Accommodation,PEOPLE & CAPABILITY                                                                                 ,EDM - EDM Group Ltd,BA0000272447,77.95,644894202
BIS,The Insolvency Service,27/02/2014,Accommodation,PEOPLE & CAPABILITY                                                                                 ,EDM - EDM Group Ltd,BA0000272455,47.45,644894202
BIS,The Insolvency Service,03/02/2014,Telecoms,ESTATES,EE LTD                                                      ,BA0000271700,576.00,771592016
BIS,The Insolvency Service,20/02/2014,Investigation and Enforcement Costs,INVESTIGATION & ENFORCEMENT SERVICES                                                                ,ENGLETON HOUSE SURGERY                                      ,BA0000272204,33.00,
BIS,The Insolvency Service,03/02/2014,Accommodation,ESTATES,ENVIRONMENT AGENCY,BA0000271706,950.00,662490134
BIS,The Insolvency Service,13/02/2014,Agency Workers,"PLANNING, PERFORMANCE & PROJECTS                                                                    ",EXECUTIVE BANDWIDTH LTD,BA0000272025,"9,681.53",
BIS,The Insolvency Service,13/02/2014,Agency Workers,"PLANNING, PERFORMANCE & PROJECTS                                                                    ",EXECUTIVE BANDWIDTH LTD,BA0000272026,"10,861.92",
BIS,The Insolvency Service,05/02/2014,Insolvency Case Related Costs,INVESTIGATION & ENFORCEMENT SERVICES                                                                ,EXPERIAN QAS LTD,BA0000271734,"2,789.28",887133593
BIS,The Insolvency Service,13/02/2014,Insolvency Case Related Costs,INVESTIGATION & ENFORCEMENT SERVICES                                                                ,EXPERIAN QAS LTD,BA0000272059,204.00,887133593
BIS,The Insolvency Service,13/02/2014,Insolvency Case Related Costs,OFFICIAL RECEIVER SERVICES                                                                          ,EXPERIAN QAS LTD,BA0000272024,"6,053.52",887133593
BIS,The Insolvency Service,05/02/2014,Accommodation,ESTATES,F&C REIT ASSET MANAGEMENT PLC,BA0000271739,76.86,209938729
BIS,The Insolvency Service,05/02/2014,Accommodation,ESTATES,F&C REIT ASSET MANAGEMENT PLC,BA0000271739,421.87,209938729
BIS,The Insolvency Service,05/02/2014,Accommodation,ESTATES,F&C REIT ASSET MANAGEMENT PLC,BA0000271739,"1,132.03",209938729
BIS,The Insolvency Service,06/01/2014,Telecoms,BUSINESS SERVICES DIRECTORATE                                                                       ,FASTHOSTS INTERNET,BA0000272436,105.91,
BIS,The Insolvency Service,17/01/2014,Accommodation,OFFICIAL RECEIVER SERVICES                                                                          ,FENWICK LTD                                                 ,BA0000272436,29.95,
BIS,The Insolvency Service,29/01/2014,Travel and Subsistence,INVESTIGATION & ENFORCEMENT SERVICES                                                                ,FIRST GTR WESTERN,BA0000272436,29.70,
BIS,The Insolvency Service,23/01/2014,Travel and Subsistence,"PLANNING, PERFORMANCE & PROJECTS                                                                    ",FIRST GTR WESTERN,BA0000272436,7.80,
BIS,The Insolvency Service,29/01/2014,Travel and Subsistence,"PLANNING, PERFORMANCE & PROJECTS                                                                    ",FIRST GTR WESTERN,BA0000272436,7.80,
BIS,The Insolvency Service,05/02/2014,Postage,OFFICIAL RECEIVER SERVICES                                                                          ,FRANKING SUPPLIES UK,BA0000271756,163.80,703279447
BIS,The Insolvency Service,13/02/2014,Telecoms,BUSINESS SERVICES DIRECTORATE                                                                       ,GAMMA BUSINESS COMMUNICATIONS LTD,BA0000272013,0.01,823820344
BIS,The Insolvency Service,13/02/2014,Telecoms,BUSINESS SERVICES DIRECTORATE                                                                       ,GAMMA BUSINESS COMMUNICATIONS LTD,BA0000272013,25.68,823820344
BIS,The Insolvency Service,13/02/2014,Telecoms,BUSINESS SERVICES DIRECTORATE                                                                       ,GAMMA BUSINESS COMMUNICATIONS LTD,BA0000272013,107.27,823820344
BIS,The Insolvency Service,13/02/2014,Telecoms,BUSINESS SERVICES DIRECTORATE                                                                       ,GAMMA BUSINESS COMMUNICATIONS LTD,BA0000272013,121.08,823820344
BIS,The Insolvency Service,13/02/2014,Telecoms,FACILITIES                                                                                          ,GAMMA BUSINESS COMMUNICATIONS LTD,BA0000272013,479.80,823820344
BIS,The Insolvency Service,13/02/2014,Telecoms,INFORMATION TECHNOLOGY                                                                              ,GAMMA BUSINESS COMMUNICATIONS LTD,BA0000272013,167.72,823820344
BIS,The Insolvency Service,13/02/2014,Telecoms,OFFICIAL RECEIVER SERVICES                                                                          ,GAMMA BUSINESS COMMUNICATIONS LTD,BA0000272013,0.10,823820344
BIS,The Insolvency Service,13/02/2014,Telecoms,OFFICIAL RECEIVER SERVICES                                                                          ,GAMMA BUSINESS COMMUNICATIONS LTD,BA0000272013,0.11,823820344
BIS,The Insolvency Service,13/02/2014,Telecoms,OFFICIAL RECEIVER SERVICES                                                                          ,GAMMA BUSINESS COMMUNICATIONS LTD,BA0000272013,0.25,823820344
BIS,The Insolvency Service,13/02/2014,Telecoms,OFFICIAL RECEIVER SERVICES                                                                          ,GAMMA BUSINESS COMMUNICATIONS LTD,BA0000272013,3.54,823820344
BIS,The Insolvency Service,13/02/2014,Telecoms,OFFICIAL RECEIVER SERVICES                                                                          ,GAMMA BUSINESS COMMUNICATIONS LTD,BA0000272013,46.27,823820344
BIS,The Insolvency Service,13/02/2014,Telecoms,OFFICIAL RECEIVER SERVICES                                                                          ,GAMMA BUSINESS COMMUNICATIONS LTD,BA0000272013,56.35,823820344
BIS,The Insolvency Service,13/02/2014,Telecoms,OFFICIAL RECEIVER SERVICES                                                                          ,GAMMA BUSINESS COMMUNICATIONS LTD,BA0000272013,63.86,823820344
BIS,The Insolvency Service,13/02/2014,Telecoms,OFFICIAL RECEIVER SERVICES                                                                          ,GAMMA BUSINESS COMMUNICATIONS LTD,BA0000272013,77.08,823820344
BIS,The Insolvency Service,13/02/2014,Telecoms,OFFICIAL RECEIVER SERVICES                                                                          ,GAMMA BUSINESS COMMUNICATIONS LTD,BA0000272013,118.43,823820344
BIS,The Insolvency Service,13/02/2014,Telecoms,OFFICIAL RECEIVER SERVICES                                                                          ,GAMMA BUSINESS COMMUNICATIONS LTD,BA0000272013,130.56,823820344
BIS,The Insolvency Service,13/02/2014,Telecoms,OFFICIAL RECEIVER SERVICES                                                                          ,GAMMA BUSINESS COMMUNICATIONS LTD,BA0000272013,145.93,823820344
BIS,The Insolvency Service,13/02/2014,Telecoms,OFFICIAL RECEIVER SERVICES                                                                          ,GAMMA BUSINESS COMMUNICATIONS LTD,BA0000272013,154.67,823820344
BIS,The Insolvency Service,13/02/2014,Telecoms,OFFICIAL RECEIVER SERVICES                                                                          ,GAMMA BUSINESS COMMUNICATIONS LTD,BA0000272013,204.31,823820344
BIS,The Insolvency Service,13/02/2014,Telecoms,OFFICIAL RECEIVER SERVICES                                                                          ,GAMMA BUSINESS COMMUNICATIONS LTD,BA0000272013,204.94,823820344
BIS,The Insolvency Service,13/02/2014,Telecoms,OFFICIAL RECEIVER SERVICES                                                                          ,GAMMA BUSINESS COMMUNICATIONS LTD,BA0000272013,222.90,823820344
BIS,The Insolvency Service,13/02/2014,Telecoms,OFFICIAL RECEIVER SERVICES                                                                          ,GAMMA BUSINESS COMMUNICATIONS LTD,BA0000272013,236.19,823820344
BIS,The Insolvency Service,13/02/2014,Telecoms,OFFICIAL RECEIVER SERVICES                                                                          ,GAMMA BUSINESS COMMUNICATIONS LTD,BA0000272013,238.82,823820344
BIS,The Insolvency Service,13/02/2014,Telecoms,OFFICIAL RECEIVER SERVICES                                                                          ,GAMMA BUSINESS COMMUNICATIONS LTD,BA0000272013,263.87,823820344
BIS,The Insolvency Service,13/02/2014,Telecoms,OFFICIAL RECEIVER SERVICES                                                                          ,GAMMA BUSINESS COMMUNICATIONS LTD,BA0000272013,277.97,823820344
BIS,The Insolvency Service,13/02/2014,Telecoms,OFFICIAL RECEIVER SERVICES                                                                          ,GAMMA BUSINESS COMMUNICATIONS LTD,BA0000272013,462.54,823820344
BIS,The Insolvency Service,17/02/2014,Accommodation,ESTATES,GARDENSCENE,BA0000272130,518.39,156944336
BIS,The Insolvency Service,20/02/2014,Accommodation,ESTATES,GLOUCESTER SALEROOMS LTD,BA0000272042,60.00,
BIS,The Insolvency Service,21/02/2014,Investigation and Enforcement Costs,INVESTIGATION & ENFORCEMENT SERVICES                                                                ,GRANT THORNTON,BA0000272287,"7,715.00",835586102
BIS,The Insolvency Service,21/02/2014,Investigation and Enforcement Costs,INVESTIGATION & ENFORCEMENT SERVICES                                                                ,GRANT THORNTON,BA0000272288,"5,460.00",835586102
BIS,The Insolvency Service,26/02/2014,Investigation and Enforcement Costs,INVESTIGATION & ENFORCEMENT SERVICES                                                                ,GRANT THORNTON,BA0000272409,"25,613.38",835586102
BIS,The Insolvency Service,26/02/2014,Investigation and Enforcement Costs,INVESTIGATION & ENFORCEMENT SERVICES                                                                ,GRANT THORNTON,BA0000272410,"5,447.50",835586102
BIS,The Insolvency Service,16/01/2014,Travel and Subsistence,OFFICIAL RECEIVER SERVICES                                                                          ,GREATER ANGLIA RAILWAY                                      ,BA0000272436,23.40,
BIS,The Insolvency Service,22/01/2014,Accommodation,OFFICIAL RECEIVER SERVICES                                                                          ,GREENHAM TRADING LTD,BA0000272436,83.26,823820932
BIS,The Insolvency Service,28/01/2014,Accommodation,OFFICIAL RECEIVER SERVICES                                                                          ,GREENHAM TRADING LTD,BA0000272436,179.37,823820932
BIS,The Insolvency Service,21/02/2014,Computer and IT Systems,INFORMATION TECHNOLOGY                                                                              ,HAGUE COMPUTER SUPPLIES,BA0000272276,326.40,333613774
BIS,The Insolvency Service,21/02/2014,Computer and IT Systems,INFORMATION TECHNOLOGY                                                                              ,HAGUE COMPUTER SUPPLIES,BA0000272277,86.40,333613774
BIS,The Insolvency Service,13/02/2014,Agency Workers,BUSINESS SERVICES DIRECTORATE                                                                       ,HAYS OFFICE SUPPORT,BA0000271991,734.51,243358171
BIS,The Insolvency Service,13/02/2014,Agency Workers,BUSINESS SERVICES DIRECTORATE                                                                       ,HAYS OFFICE SUPPORT,BA0000271991,"2,913.11",243358171
BIS,The Insolvency Service,13/02/2014,Agency Workers,BUSINESS SERVICES DIRECTORATE                                                                       ,HAYS OFFICE SUPPORT,BA0000271991,"4,165.65",243358171
BIS,The Insolvency Service,13/02/2014,Agency Workers,BUSINESS SERVICES DIRECTORATE                                                                       ,HAYS OFFICE SUPPORT,BA0000271991,"5,170.58",243358171
BIS,The Insolvency Service,13/02/2014,Agency Workers,BUSINESS SERVICES DIRECTORATE                                                                       ,HAYS OFFICE SUPPORT,BA0000271991,"5,614.00",243358171
BIS,The Insolvency Service,13/02/2014,Agency Workers,BUSINESS SERVICES DIRECTORATE                                                                       ,HAYS OFFICE SUPPORT,BA0000271991,"8,328.75",243358171
BIS,The Insolvency Service,13/02/2014,Agency Workers,BUSINESS SERVICES DIRECTORATE                                                                       ,HAYS OFFICE SUPPORT,BA0000271991,"8,650.20",243358171
BIS,The Insolvency Service,13/02/2014,Agency Workers,BUSINESS SERVICES DIRECTORATE                                                                       ,HAYS OFFICE SUPPORT,BA0000271991,"10,802.15",243358171
BIS,The Insolvency Service,13/02/2014,Agency Workers,BUSINESS SERVICES DIRECTORATE                                                                       ,HAYS OFFICE SUPPORT,BA0000271991,"25,205.53",243358171
BIS,The Insolvency Service,13/02/2014,Agency Workers,FINANCE AND COMMERCIAL,HAYS OFFICE SUPPORT,BA0000271991,"1,931.20",243358171
BIS,The Insolvency Service,13/02/2014,Agency Workers,INFORMATION TECHNOLOGY                                                                              ,HAYS OFFICE SUPPORT,BA0000271991,"20,811.73",243358171
BIS,The Insolvency Service,13/02/2014,Agency Workers,INVESTIGATION & ENFORCEMENT SERVICES                                                                ,HAYS OFFICE SUPPORT,BA0000271991,242.32,243358171
BIS,The Insolvency Service,13/02/2014,Agency Workers,INVESTIGATION & ENFORCEMENT SERVICES                                                                ,HAYS OFFICE SUPPORT,BA0000271991,"1,681.23",243358171
BIS,The Insolvency Service,13/02/2014,Agency Workers,INVESTIGATION & ENFORCEMENT SERVICES                                                                ,HAYS OFFICE SUPPORT,BA0000271991,"1,779.70",243358171
BIS,The Insolvency Service,13/02/2014,Agency Workers,INVESTIGATION & ENFORCEMENT SERVICES                                                                ,HAYS OFFICE SUPPORT,BA0000271991,"2,135.66",243358171
BIS,The Insolvency Service,13/02/2014,Agency Workers,INVESTIGATION & ENFORCEMENT SERVICES                                                                ,HAYS OFFICE SUPPORT,BA0000271991,"3,476.10",243358171
BIS,The Insolvency Service,13/02/2014,Agency Workers,INVESTIGATION & ENFORCEMENT SERVICES                                                                ,HAYS OFFICE SUPPORT,BA0000271991,"5,786.53",243358171
BIS,The Insolvency Service,13/02/2014,Agency Workers,OFFICIAL RECEIVER SERVICES                                                                          ,HAYS OFFICE SUPPORT,BA0000271991,302.75,243358171
BIS,The Insolvency Service,13/02/2014,Agency Workers,OFFICIAL RECEIVER SERVICES                                                                          ,HAYS OFFICE SUPPORT,BA0000271991,744.50,243358171
BIS,The Insolvency Service,13/02/2014,Agency Workers,OFFICIAL RECEIVER SERVICES                                                                          ,HAYS OFFICE SUPPORT,BA0000271991,"1,317.66",243358171
BIS,The Insolvency Service,13/02/2014,Agency Workers,OFFICIAL RECEIVER SERVICES                                                                          ,HAYS OFFICE SUPPORT,BA0000271991,"1,608.12",243358171
BIS,The Insolvency Service,13/02/2014,Agency Workers,OFFICIAL RECEIVER SERVICES                                                                          ,HAYS OFFICE SUPPORT,BA0000271991,"1,704.00",243358171
BIS,The Insolvency Service,13/02/2014,Agency Workers,OFFICIAL RECEIVER SERVICES                                                                          ,HAYS OFFICE SUPPORT,BA0000271991,"1,819.06",243358171
BIS,The Insolvency Service,13/02/2014,Agency Workers,OFFICIAL RECEIVER SERVICES                                                                          ,HAYS OFFICE SUPPORT,BA0000271991,"1,869.94",243358171
BIS,The Insolvency Service,13/02/2014,Agency Workers,OFFICIAL RECEIVER SERVICES                                                                          ,HAYS OFFICE SUPPORT,BA0000271991,"1,953.82",243358171
BIS,The Insolvency Service,13/02/2014,Agency Workers,OFFICIAL RECEIVER SERVICES                                                                          ,HAYS OFFICE SUPPORT,BA0000271991,"1,969.06",243358171
BIS,The Insolvency Service,13/02/2014,Agency Workers,OFFICIAL RECEIVER SERVICES                                                                          ,HAYS OFFICE SUPPORT,BA0000271991,"2,867.57",243358171
BIS,The Insolvency Service,13/02/2014,Agency Workers,OFFICIAL RECEIVER SERVICES                                                                          ,HAYS OFFICE SUPPORT,BA0000271991,"2,977.37",243358171
BIS,The Insolvency Service,13/02/2014,Agency Workers,OFFICIAL RECEIVER SERVICES                                                                          ,HAYS OFFICE SUPPORT,BA0000271991,"4,527.33",243358171
BIS,The Insolvency Service,13/02/2014,Agency Workers,OFFICIAL RECEIVER SERVICES                                                                          ,HAYS OFFICE SUPPORT,BA0000271991,"6,842.57",243358171
BIS,The Insolvency Service,13/02/2014,Agency Workers,OFFICIAL RECEIVER SERVICES                                                                          ,HAYS OFFICE SUPPORT,BA0000271991,"9,348.58",243358171
BIS,The Insolvency Service,13/02/2014,Agency Workers,OFFICIAL RECEIVER SERVICES                                                                          ,HAYS OFFICE SUPPORT,BA0000271991,"15,471.72",243358171
BIS,The Insolvency Service,13/02/2014,Agency Workers,PEOPLE & CAPABILITY                                                                                 ,HAYS OFFICE SUPPORT,BA0000271991,"2,006.87",243358171
BIS,The Insolvency Service,13/02/2014,Agency Workers,"PLANNING, PERFORMANCE & PROJECTS                                                                    ",HAYS OFFICE SUPPORT,BA0000271991,"2,742.84",243358171
BIS,The Insolvency Service,13/02/2014,Agency Workers,"PLANNING, PERFORMANCE & PROJECTS                                                                    ",HAYS OFFICE SUPPORT,BA0000271991,"6,505.28",243358171
BIS,The Insolvency Service,17/02/2014,Employee Related Costs,PEOPLE & CAPABILITY                                                                                 ,HEALTH MANAGEMENT LTD,BA0000272116,"1,276.26",792250621
BIS,The Insolvency Service,09/01/2014,Insolvency Case Related Costs,INVESTIGATION & ENFORCEMENT SERVICES                                                                ,HM PASSPORT OFFICE                                          ,BA0000272436,9.25,
BIS,The Insolvency Service,03/02/2014,Accounting and Banking,BUSINESS SERVICES DIRECTORATE                                                                       ,HM TREASURY,BA0000271696,"18,500.00",888827544
BIS,The Insolvency Service,11/02/2014,Investigation and Enforcement Costs,OFFICIAL RECEIVER SERVICES                                                                          ,HMCTS,BA0000271955,465.00,
BIS,The Insolvency Service,11/02/2014,Investigation and Enforcement Costs,OFFICIAL RECEIVER SERVICES                                                                          ,HMCTS,BA0000271952,465.00,
BIS,The Insolvency Service,11/02/2014,Investigation and Enforcement Costs,OFFICIAL RECEIVER SERVICES                                                                          ,HMCTS,BA0000271950,465.00,
BIS,The Insolvency Service,11/02/2014,Investigation and Enforcement Costs,OFFICIAL RECEIVER SERVICES                                                                          ,HMCTS,BA0000271956,175.00,
BIS,The Insolvency Service,20/02/2014,Investigation and Enforcement Costs,OFFICIAL RECEIVER SERVICES                                                                          ,HMCTS,BA0000272185,465.00,
BIS,The Insolvency Service,20/02/2014,Investigation and Enforcement Costs,OFFICIAL RECEIVER SERVICES                                                                          ,HMCTS,BA0000272186,465.00,
BIS,The Insolvency Service,20/02/2014,Investigation and Enforcement Costs,OFFICIAL RECEIVER SERVICES                                                                          ,HMCTS,BA0000272184,465.00,
BIS,The Insolvency Service,20/02/2014,Investigation and Enforcement Costs,OFFICIAL RECEIVER SERVICES                                                                          ,HMCTS,BA0000272183,465.00,
BIS,The Insolvency Service,28/02/2014,Employee Related Costs,PEOPLE & CAPABILITY                                                                                 ,HMRC,BA0000272405,187.50,888848141
BIS,The Insolvency Service,27/02/2014,Accounting and Banking,FINANCE AND COMMERCIAL,HMRC- INLAND REVENUE,BA0000272461,101.28,
BIS,The Insolvency Service,11/02/2014,Conferences,OFFICIAL RECEIVER SERVICES                                                                          ,HOLIDAY INN - MILTON KEYNES,BA0000271901,"6,924.00",507943924
BIS,The Insolvency Service,23/01/2014,Travel and Subsistence,Director of Operations & Deputy CE                                                                  ,HOTEL LA TOUR,BA0000272436,630.00,
BIS,The Insolvency Service,30/01/2014,Travel and Subsistence,OFFICIAL RECEIVER SERVICES                                                                          ,HOTELSMART,BA0000272436,6.00,
BIS,The Insolvency Service,30/01/2014,Travel and Subsistence,OFFICIAL RECEIVER SERVICES                                                                          ,HOTELSMART,BA0000272436,6.00,
BIS,The Insolvency Service,07/02/2014,Investigation and Enforcement Costs,INVESTIGATION & ENFORCEMENT SERVICES                                                                ,HOWES PERCIVAL,BA0000271832,83.98,119523573
BIS,The Insolvency Service,07/02/2014,Investigation and Enforcement Costs,INVESTIGATION & ENFORCEMENT SERVICES                                                                ,HOWES PERCIVAL,BA0000271832,"23,430.75",119523573
BIS,The Insolvency Service,07/02/2014,Investigation and Enforcement Costs,INVESTIGATION & ENFORCEMENT SERVICES                                                                ,HOWES PERCIVAL,BA0000271842,12.00,119523573
BIS,The Insolvency Service,07/02/2014,Investigation and Enforcement Costs,INVESTIGATION & ENFORCEMENT SERVICES                                                                ,HOWES PERCIVAL,BA0000271842,"24,659.00",119523573
BIS,The Insolvency Service,07/02/2014,Investigation and Enforcement Costs,INVESTIGATION & ENFORCEMENT SERVICES                                                                ,HOWES PERCIVAL,BA0000271843,"7,385.00",119523573
BIS,The Insolvency Service,07/02/2014,Investigation and Enforcement Costs,INVESTIGATION & ENFORCEMENT SERVICES                                                                ,HOWES PERCIVAL,BA0000271843,"21,494.08",119523573
BIS,The Insolvency Service,07/02/2014,Investigation and Enforcement Costs,INVESTIGATION & ENFORCEMENT SERVICES                                                                ,HOWES PERCIVAL,BA0000271844,4.00,119523573
BIS,The Insolvency Service,07/02/2014,Investigation and Enforcement Costs,INVESTIGATION & ENFORCEMENT SERVICES                                                                ,HOWES PERCIVAL,BA0000271844,"29,917.01",119523573
BIS,The Insolvency Service,17/02/2014,Investigation and Enforcement Costs,INVESTIGATION & ENFORCEMENT SERVICES                                                                ,HOWES PERCIVAL,BA0000272105,6.00,119523573
BIS,The Insolvency Service,17/02/2014,Investigation and Enforcement Costs,INVESTIGATION & ENFORCEMENT SERVICES                                                                ,HOWES PERCIVAL,BA0000272105,"1,726.20",119523573
BIS,The Insolvency Service,19/02/2014,Investigation and Enforcement Costs,INVESTIGATION & ENFORCEMENT SERVICES                                                                ,HOWES PERCIVAL,BA0000272174,218.75,119523573
BIS,The Insolvency Service,19/02/2014,Investigation and Enforcement Costs,INVESTIGATION & ENFORCEMENT SERVICES                                                                ,HOWES PERCIVAL,BA0000272175,670.00,119523573
BIS,The Insolvency Service,21/02/2014,Investigation and Enforcement Costs,INVESTIGATION & ENFORCEMENT SERVICES                                                                ,HOWES PERCIVAL,BA0000272248,"6,937.70",119523573
BIS,The Insolvency Service,21/02/2014,Investigation and Enforcement Costs,INVESTIGATION & ENFORCEMENT SERVICES                                                                ,HOWES PERCIVAL,BA0000272248,"67,452.89",119523573
BIS,The Insolvency Service,11/02/2014,Insolvency Case Related Costs,OFFICIAL RECEIVER SERVICES                                                                          ,HPI LTD,BA0000271909,184.12,942407139
BIS,The Insolvency Service,11/02/2014,Insolvency Case Related Costs,OFFICIAL RECEIVER SERVICES                                                                          ,HPI LTD,BA0000271968,14.86,942407139
BIS,The Insolvency Service,13/02/2014,Insolvency Case Related Costs,OFFICIAL RECEIVER SERVICES                                                                          ,HPI LTD,BA0000272031,23.86,942407139
BIS,The Insolvency Service,13/02/2014,Insolvency Case Related Costs,OFFICIAL RECEIVER SERVICES                                                                          ,HPI LTD,BA0000272032,147.64,942407139
BIS,The Insolvency Service,02/01/2014,Travel and Subsistence,FINANCE AND COMMERCIAL,HRG UK,BA0000272436,5.67,
BIS,The Insolvency Service,02/01/2014,Travel and Subsistence,FINANCE AND COMMERCIAL,HRG UK,BA0000272436,6.36,
BIS,The Insolvency Service,07/01/2014,Travel and Subsistence,FINANCE AND COMMERCIAL,HRG UK,BA0000272436,6.01,
BIS,The Insolvency Service,08/01/2014,Travel and Subsistence,FINANCE AND COMMERCIAL,HRG UK,BA0000272436,50.60,
BIS,The Insolvency Service,08/01/2014,Travel and Subsistence,FINANCE AND COMMERCIAL,HRG UK,BA0000272436,6.33,
BIS,The Insolvency Service,10/01/2014,Travel and Subsistence,FINANCE AND COMMERCIAL,HRG UK,BA0000272436,-50.60,
BIS,The Insolvency Service,10/01/2014,Travel and Subsistence,FINANCE AND COMMERCIAL,HRG UK,BA0000272436,5.67,
BIS,The Insolvency Service,15/01/2014,Travel and Subsistence,FINANCE AND COMMERCIAL,HRG UK,BA0000272436,72.00,
BIS,The Insolvency Service,15/01/2014,Travel and Subsistence,FINANCE AND COMMERCIAL,HRG UK,BA0000272436,5.64,
BIS,The Insolvency Service,20/01/2014,Travel and Subsistence,FINANCE AND COMMERCIAL,HRG UK,BA0000272436,60.00,
BIS,The Insolvency Service,21/01/2014,Travel and Subsistence,FINANCE AND COMMERCIAL,HRG UK,BA0000272436,6.01,
BIS,The Insolvency Service,21/01/2014,Travel and Subsistence,FINANCE AND COMMERCIAL,HRG UK,BA0000272436,6.16,
BIS,The Insolvency Service,24/01/2014,Travel and Subsistence,FINANCE AND COMMERCIAL,HRG UK,BA0000272436,96.45,
BIS,The Insolvency Service,24/01/2014,Travel and Subsistence,FINANCE AND COMMERCIAL,HRG UK,BA0000272436,170.00,
BIS,The Insolvency Service,24/01/2014,Travel and Subsistence,FINANCE AND COMMERCIAL,HRG UK,BA0000272436,5.68,
BIS,The Insolvency Service,24/01/2014,Travel and Subsistence,FINANCE AND COMMERCIAL,HRG UK,BA0000272436,5.73,
BIS,The Insolvency Service,03/02/2014,Agency Workers,FINANCE AND COMMERCIAL,HUDSON GLOBAL RESOURCES LTD,BA0000271673,"2,376.00",
BIS,The Insolvency Service,11/02/2014,Agency Workers,FINANCE AND COMMERCIAL,HUDSON GLOBAL RESOURCES LTD,BA0000271834,"-1,900.80",
BIS,The Insolvency Service,11/02/2014,Agency Workers,FINANCE AND COMMERCIAL,HUDSON GLOBAL RESOURCES LTD,BA0000271900,"2,376.00",
BIS,The Insolvency Service,17/02/2014,Agency Workers,FINANCE AND COMMERCIAL,HUDSON GLOBAL RESOURCES LTD,BA0000272144,"2,376.00",
BIS,The Insolvency Service,28/02/2014,Agency Workers,FINANCE AND COMMERCIAL,HUDSON GLOBAL RESOURCES LTD,BA0000272542,"2,376.00",
BIS,The Insolvency Service,05/02/2014,Computer and IT Systems,INFORMATION TECHNOLOGY                                                                              ,IBM UK LTD,BA0000271793,"1,774.59",107328000
BIS,The Insolvency Service,05/02/2014,Computer and IT Systems,INFORMATION TECHNOLOGY                                                                              ,IBM UK LTD,BA0000271794,"2,143.20",107328000
BIS,The Insolvency Service,05/02/2014,Computer and IT Systems,INFORMATION TECHNOLOGY                                                                              ,IBM UK LTD,BA0000271795,"3,149.00",107328000
BIS,The Insolvency Service,05/02/2014,Computer and IT Systems,INFORMATION TECHNOLOGY                                                                              ,IBM UK LTD,BA0000271795,"143,394.00",107328000
BIS,The Insolvency Service,07/02/2014,Computer and IT Systems,INFORMATION TECHNOLOGY                                                                              ,IBM UK LTD,BA0000271850,780.30,107328000
BIS,The Insolvency Service,21/02/2014,Computer and IT Systems,INFORMATION TECHNOLOGY                                                                              ,IBM UK LTD,BA0000272289,"2,143.20",107328000
BIS,The Insolvency Service,21/02/2014,Computer and IT Systems,INFORMATION TECHNOLOGY                                                                              ,IBM UK LTD,BA0000272290,"198,667.00",107328000
BIS,The Insolvency Service,27/02/2014,Office Machinery,ESTATES,ING LEASE (UK) LTD,BA0000272468,289.44,577613314
BIS,The Insolvency Service,11/02/2014,Office Machinery,BUSINESS SERVICES DIRECTORATE                                                                       ,INITIAL FACILITIES DATA CENTRE CLEANING & IT HYGIENE,BA0000271958,373.96,
BIS,The Insolvency Service,05/02/2014,Insolvency Case Related Costs,OFFICIAL RECEIVER SERVICES                                                                          ,INSOLVENCY SERVICE,BA0000271758,40.00,
BIS,The Insolvency Service,05/02/2014,Insolvency Case Related Costs,OFFICIAL RECEIVER SERVICES                                                                          ,INSOLVENCY SERVICE,BA0000271772,80.00,
BIS,The Insolvency Service,13/02/2014,Insolvency Case Related Costs,OFFICIAL RECEIVER SERVICES                                                                          ,INSOLVENCY SERVICE,BA0000272046,80.00,
BIS,The Insolvency Service,21/02/2014,Insolvency Case Related Costs,OFFICIAL RECEIVER SERVICES                                                                          ,INSOLVENCY SERVICE,BA0000272271,40.00,
BIS,The Insolvency Service,26/02/2014,Insolvency Case Related Costs,OFFICIAL RECEIVER SERVICES                                                                          ,INSOLVENCY SERVICE,BA0000272378,40.00,
BIS,The Insolvency Service,20/02/2014,Insolvency Case Related Costs,FINANCE AND COMMERCIAL,INSOLVENCY SERVICE ACCOUNT,BA0000272129,134.70,
BIS,The Insolvency Service,20/02/2014,Insolvency Case Related Costs,FINANCE AND COMMERCIAL,INSOLVENCY SERVICE ACCOUNT,BA0000272134,572.07,
BIS,The Insolvency Service,20/02/2014,Insolvency Case Related Costs,FINANCE AND COMMERCIAL,INSOLVENCY SERVICE ACCOUNT,BA0000272135,2.92,
BIS,The Insolvency Service,13/02/2014,Agency Workers,FINANCE AND COMMERCIAL,INTERQUEST GROUP (FORMALLY SAND RESOURCES LTD)              ,BA0000272019,"9,593.28",820437161
BIS,The Insolvency Service,11/02/2014,Agency Workers,"PLANNING, PERFORMANCE & PROJECTS                                                                    ",INTERQUEST GROUP (FORMALLY SAND RESOURCES LTD)              ,BA0000271928,"12,825.17",820437161
BIS,The Insolvency Service,13/02/2014,Agency Workers,"PLANNING, PERFORMANCE & PROJECTS                                                                    ",INTERQUEST GROUP (FORMALLY SAND RESOURCES LTD)              ,BA0000272018,"9,479.47",820437161
BIS,The Insolvency Service,13/02/2014,Computer and IT Systems,INFORMATION TECHNOLOGY                                                                              ,INTERQUEST GROUP (FORMALLY SAND RESOURCES LTD)              ,BA0000272020,"7,274.88",820437161
BIS,The Insolvency Service,21/02/2014,Accommodation,BUSINESS SERVICES DIRECTORATE                                                                       ,IRON MOUNTAIN (UK) LTD,BA0000272283,"8,325.95",607937516
BIS,The Insolvency Service,21/02/2014,Accommodation,BUSINESS SERVICES DIRECTORATE                                                                       ,IRON MOUNTAIN (UK) LTD,BA0000272283,"10,717.78",607937516
BIS,The Insolvency Service,24/02/2014,Accommodation,BUSINESS SERVICES DIRECTORATE                                                                       ,IRON MOUNTAIN (UK) LTD,BA0000272316,"1,729.03",607937516
BIS,The Insolvency Service,21/02/2014,Accommodation,CUSTOMER AND COMMUNICATIONS                                                                         ,IRON MOUNTAIN (UK) LTD,BA0000272283,6.60,607937516
BIS,The Insolvency Service,21/02/2014,Accommodation,CUSTOMER AND COMMUNICATIONS                                                                         ,IRON MOUNTAIN (UK) LTD,BA0000272283,49.01,607937516
BIS,The Insolvency Service,24/02/2014,Accommodation,CUSTOMER AND COMMUNICATIONS                                                                         ,IRON MOUNTAIN (UK) LTD,BA0000272316,1.47,607937516
BIS,The Insolvency Service,21/02/2014,Accommodation,EXTERNAL AFFAIRS                                                                                    ,IRON MOUNTAIN (UK) LTD,BA0000272283,725.09,607937516
BIS,The Insolvency Service,21/02/2014,Accommodation,EXTERNAL AFFAIRS                                                                                    ,IRON MOUNTAIN (UK) LTD,BA0000272283,851.74,607937516
BIS,The Insolvency Service,24/02/2014,Accommodation,EXTERNAL AFFAIRS                                                                                    ,IRON MOUNTAIN (UK) LTD,BA0000272316,89.13,607937516
BIS,The Insolvency Service,21/02/2014,Accommodation,INFORMATION TECHNOLOGY                                                                              ,IRON MOUNTAIN (UK) LTD,BA0000272283,989.89,607937516
BIS,The Insolvency Service,21/02/2014,Accommodation,INFORMATION TECHNOLOGY                                                                              ,IRON MOUNTAIN (UK) LTD,BA0000272283,"1,362.35",607937516
BIS,The Insolvency Service,24/02/2014,Accommodation,INFORMATION TECHNOLOGY                                                                              ,IRON MOUNTAIN (UK) LTD,BA0000272316,145.33,607937516
BIS,The Insolvency Service,21/02/2014,Accommodation,INVESTIGATION & ENFORCEMENT SERVICES                                                                ,IRON MOUNTAIN (UK) LTD,BA0000272283,"15,525.04",607937516
BIS,The Insolvency Service,21/02/2014,Accommodation,INVESTIGATION & ENFORCEMENT SERVICES                                                                ,IRON MOUNTAIN (UK) LTD,BA0000272283,"21,712.19",607937516
BIS,The Insolvency Service,24/02/2014,Accommodation,INVESTIGATION & ENFORCEMENT SERVICES                                                                ,IRON MOUNTAIN (UK) LTD,BA0000272316,"2,297.20",607937516
BIS,The Insolvency Service,21/02/2014,Accommodation,OFFICIAL RECEIVER SERVICES                                                                          ,IRON MOUNTAIN (UK) LTD,BA0000272283,"113,376.41",607937516
BIS,The Insolvency Service,21/02/2014,Accommodation,OFFICIAL RECEIVER SERVICES                                                                          ,IRON MOUNTAIN (UK) LTD,BA0000272283,"232,880.55",607937516
BIS,The Insolvency Service,24/02/2014,Accommodation,OFFICIAL RECEIVER SERVICES                                                                          ,IRON MOUNTAIN (UK) LTD,BA0000272316,"23,288.70",607937516
BIS,The Insolvency Service,21/02/2014,Accommodation,PEOPLE & CAPABILITY                                                                                 ,IRON MOUNTAIN (UK) LTD,BA0000272283,486.40,607937516
BIS,The Insolvency Service,21/02/2014,Accommodation,PEOPLE & CAPABILITY                                                                                 ,IRON MOUNTAIN (UK) LTD,BA0000272283,524.01,607937516
BIS,The Insolvency Service,24/02/2014,Accommodation,PEOPLE & CAPABILITY                                                                                 ,IRON MOUNTAIN (UK) LTD,BA0000272316,49.56,607937516
BIS,The Insolvency Service,19/02/2014,Conferences,INVESTIGATION & ENFORCEMENT SERVICES                                                                ,ITSA LIMITED,BA0000272178,983.59,795862660
BIS,The Insolvency Service,26/02/2014,Insolvency Case Related Costs,OFFICIAL RECEIVER SERVICES                                                                          ,K INTERNATIONAL PLC,BA0000272371,"1,926.02",600413800
BIS,The Insolvency Service,07/02/2014,Investigation and Enforcement Costs,INVESTIGATION & ENFORCEMENT SERVICES                                                                ,K INTERNATIONAL PLC,BA0000271845,440.16,600413800
BIS,The Insolvency Service,07/02/2014,Translation Costs,OFFICIAL RECEIVER SERVICES                                                                          ,K INTERNATIONAL PLC,BA0000271845,"2,018.34",600413800
BIS,The Insolvency Service,26/02/2014,Translation Costs,OFFICIAL RECEIVER SERVICES                                                                          ,K INTERNATIONAL PLC,BA0000272371,30.00,600413800
BIS,The Insolvency Service,26/02/2014,Translation Costs,OFFICIAL RECEIVER SERVICES                                                                          ,K INTERNATIONAL PLC,BA0000272371,54.10,600413800
BIS,The Insolvency Service,26/02/2014,Translation Costs,OFFICIAL RECEIVER SERVICES                                                                          ,K INTERNATIONAL PLC,BA0000272371,114.71,600413800
BIS,The Insolvency Service,26/02/2014,Translation Costs,OFFICIAL RECEIVER SERVICES                                                                          ,K INTERNATIONAL PLC,BA0000272371,138.18,600413800
BIS,The Insolvency Service,05/02/2014,Telecoms,OFFICIAL RECEIVER SERVICES                                                                          ,KCOM GROUP PLC,BA0000271754,195.82,647235137
BIS,The Insolvency Service,05/02/2014,Telecoms,OFFICIAL RECEIVER SERVICES                                                                          ,KCOM GROUP PLC,BA0000271755,16.17,647235137
BIS,The Insolvency Service,11/02/2014,Accounting and Banking,FINANCE AND COMMERCIAL,KDS UK LTD,BA0000271970,"2,786.40",776463881
BIS,The Insolvency Service,14/01/2014,Telecoms,FINANCE AND COMMERCIAL                                                                              ,KINGSTON COMMUNICATIONS,BA0000272436,68.40,647235137
BIS,The Insolvency Service,14/01/2014,Telecoms,FINANCE AND COMMERCIAL                                                                              ,KINGSTON COMMUNICATIONS,BA0000272436,71.44,647235137
BIS,The Insolvency Service,14/01/2014,Telecoms,FINANCE AND COMMERCIAL                                                                              ,KINGSTON COMMUNICATIONS,BA0000272436,72.00,647235137
BIS,The Insolvency Service,11/02/2014,Accounting and Banking,FINANCE AND COMMERCIAL,KYPERA LTD,BA0000271903,"13,864.50",813905437
BIS,The Insolvency Service,11/02/2014,Accounting and Banking,FINANCE AND COMMERCIAL,KYPERA LTD,BA0000271904,"1,448.88",813905437
BIS,The Insolvency Service,28/02/2014,Computer and IT Systems,INFORMATION TECHNOLOGY                                                                              ,KYPERA LTD,BA0000272536,"93,317.39",813905437
BIS,The Insolvency Service,13/02/2014,Agency Workers,INFORMATION TECHNOLOGY                                                                              ,LA INTERNATIONAL COMPUTER CONSULTANTS LTD,BA0000272017,"11,545.51",
BIS,The Insolvency Service,17/02/2014,Accommodation,ESTATES,LAMBERT SMITH HAMPTON,BA0000272150,"41,632.80",
BIS,The Insolvency Service,17/02/2014,Accommodation,ESTATES,LAMBERT SMITH HAMPTON,BA0000272150,"9,000.93",
BIS,The Insolvency Service,08/01/2014,Travel and Subsistence,INVESTIGATION & ENFORCEMENT SERVICES                                                                ,LONDON & SOUTH EAS,BA0000272436,8.00,
BIS,The Insolvency Service,07/02/2014,Insolvency Case Related Costs,OFFICIAL RECEIVER SERVICES                                                                          ,LONDON HOUSE INTERNATIONAL LTD,BA0000271866,"4,443.00",650755433
BIS,The Insolvency Service,07/02/2014,Investigation and Enforcement Costs,INVESTIGATION & ENFORCEMENT SERVICES                                                                ,LONDON HOUSE INTERNATIONAL LTD,BA0000271866,240.00,650755433
BIS,The Insolvency Service,07/02/2014,Investigation and Enforcement Costs,OFFICIAL RECEIVER SERVICES                                                                          ,LONDON HOUSE INTERNATIONAL LTD,BA0000271866,750.00,650755433
BIS,The Insolvency Service,28/01/2014,Travel and Subsistence,OFFICIAL RECEIVER SERVICES                                                                          ,LONDON MIDLAND SEL,BA0000272436,9.20,
BIS,The Insolvency Service,21/02/2014,Accommodation,ESTATES,LPC 1 LIMITED,BA0000272245,"13,065.00",894414007
BIS,The Insolvency Service,21/02/2014,Accommodation,ESTATES,LPC 1 LIMITED,BA0000272247,"8,910.00",894414007
BIS,The Insolvency Service,21/02/2014,Accommodation,ESTATES,LPC 1 LIMITED,BA0000272273,300.00,894414007
BIS,The Insolvency Service,15/01/2014,Travel and Subsistence,INVESTIGATION & ENFORCEMENT SERVICES                                                                ,LUL TICKET MACHINE,BA0000272436,8.80,
BIS,The Insolvency Service,29/01/2014,Travel and Subsistence,INVESTIGATION & ENFORCEMENT SERVICES                                                                ,LUL TICKET MACHINE,BA0000272436,20.00,
BIS,The Insolvency Service,30/01/2014,Travel and Subsistence,INVESTIGATION & ENFORCEMENT SERVICES                                                                ,LUL TICKET MACHINE,BA0000272436,9.00,
BIS,The Insolvency Service,21/01/2014,Travel and Subsistence,OFFICIAL RECEIVER SERVICES                                                                          ,LUL TICKET MACHINE,BA0000272436,9.00,
BIS,The Insolvency Service,22/01/2014,Travel and Subsistence,OFFICIAL RECEIVER SERVICES                                                                          ,LUL TICKET MACHINE,BA0000272436,9.00,
BIS,The Insolvency Service,08/01/2014,Travel and Subsistence,OFFICIAL RECEIVER SERVICES                                                                          ,LUL TICKET OFFICE,BA0000272436,8.80,
BIS,The Insolvency Service,23/01/2014,Office Supplies and Services,FINANCE AND COMMERCIAL                                                                              ,LUMIE                                                       ,BA0000272436,120.00,
BIS,The Insolvency Service,13/01/2014,Travel and Subsistence,BUSINESS SERVICES DIRECTORATE                                                                       ,M6 TOLL,BA0000272436,4.00,
BIS,The Insolvency Service,27/01/2014,Travel and Subsistence,BUSINESS SERVICES DIRECTORATE                                                                       ,M6 TOLL,BA0000272436,5.50,
BIS,The Insolvency Service,29/01/2014,Travel and Subsistence,BUSINESS SERVICES DIRECTORATE                                                                       ,M6 TOLL,BA0000272436,5.50,
BIS,The Insolvency Service,11/02/2014,Agency Workers,"PLANNING, PERFORMANCE & PROJECTS                                                                    ",MACE LTD                                                    ,BA0000271899,"12,597.60",
BIS,The Insolvency Service,11/02/2014,Agency Workers,"PLANNING, PERFORMANCE & PROJECTS                                                                    ",MACE LTD                                                    ,BA0000271933,"6,120.00",
BIS,The Insolvency Service,11/02/2014,Agency Workers,"PLANNING, PERFORMANCE & PROJECTS                                                                    ",MACE LTD                                                    ,BA0000271934,"10,920.00",
BIS,The Insolvency Service,19/02/2014,Investigation and Enforcement Costs,CUSTOMER AND COMMUNICATIONS                                                                         ,MARKET & OPINION RESEARCH INTERNATIONAL LIMITED t/a IPSOS   ,BA0000272112,"8,799.00",
BIS,The Insolvency Service,23/01/2014,Travel and Subsistence,FINANCE AND COMMERCIAL                                                                              ,MARWELL HOTEL                                               ,BA0000272436,128.00,
BIS,The Insolvency Service,24/01/2014,Travel and Subsistence,FINANCE AND COMMERCIAL                                                                              ,MARWELL HOTEL                                               ,BA0000272436,500.76,
BIS,The Insolvency Service,24/01/2014,Travel and Subsistence,FINANCE AND COMMERCIAL                                                                              ,MARWELL HOTEL                                               ,BA0000272436,640.00,
BIS,The Insolvency Service,03/02/2014,Agency Workers,FINANCE AND COMMERCIAL                                                                              ,MICHAEL PAGE INTERNATIONAL RECRUITMENT LTD,BA0000271676,"2,714.88",354259936
BIS,The Insolvency Service,07/02/2014,Agency Workers,FINANCE AND COMMERCIAL                                                                              ,MICHAEL PAGE INTERNATIONAL RECRUITMENT LTD,BA0000271835,"2,714.88",354259936
BIS,The Insolvency Service,17/02/2014,Agency Workers,FINANCE AND COMMERCIAL                                                                              ,MICHAEL PAGE INTERNATIONAL RECRUITMENT LTD,BA0000272145,"2,714.88",354259936
BIS,The Insolvency Service,24/02/2014,Agency Workers,FINANCE AND COMMERCIAL                                                                              ,MICHAEL PAGE INTERNATIONAL RECRUITMENT LTD,BA0000272318,"2,714.88",354259936
BIS,The Insolvency Service,28/02/2014,Agency Workers,FINANCE AND COMMERCIAL                                                                              ,MICHAEL PAGE INTERNATIONAL RECRUITMENT LTD,BA0000272535,"2,714.88",354259936
BIS,The Insolvency Service,30/01/2014,Computer and IT Systems,FINANCE AND COMMERCIAL                                                                              ,MICRON EUROPE                                               ,BA0000272436,93.58,
BIS,The Insolvency Service,13/02/2014,Accommodation,ESTATES,MIDDLESBROUGH COUNCIL                                       ,BA0000272051,256.92,734213854
BIS,The Insolvency Service,16/01/2014,Travel and Subsistence,OFFICIAL RECEIVER SERVICES                                                                          ,NCP PARKING,BA0000272436,6.00,
BIS,The Insolvency Service,22/01/2014,Travel and Subsistence,OFFICIAL RECEIVER SERVICES                                                                          ,NCP PARKING,BA0000272436,6.00,
BIS,The Insolvency Service,31/01/2014,Travel and Subsistence,OFFICIAL RECEIVER SERVICES                                                                          ,NCP PARKING,BA0000272436,6.00,
BIS,The Insolvency Service,05/02/2014,Office Machinery,INFORMATION TECHNOLOGY                                                                              ,NEOPOST  LIMITED (LEASING),BA0000271742,"3,018.00",805644140
BIS,The Insolvency Service,13/02/2014,Office Supplies and Services,BUSINESS SERVICES DIRECTORATE                                                                       ,NEOPOST LIMITED (CONSUMABLES),BA0000272028,"1,072.80",597265489
BIS,The Insolvency Service,19/02/2014,Office Supplies and Services,INFORMATION TECHNOLOGY                                                                              ,NEOPOST LIMITED (CONSUMABLES),BA0000272187,968.36,597265489
BIS,The Insolvency Service,03/02/2014,Office Supplies and Services,OFFICIAL RECEIVER SERVICES                                                                          ,NEOPOST LIMITED (CONSUMABLES),BA0000271701,293.38,597265489
BIS,The Insolvency Service,03/02/2014,Office Supplies and Services,OFFICIAL RECEIVER SERVICES                                                                          ,NEOPOST LIMITED (CONSUMABLES),BA0000271704,124.79,597265489
BIS,The Insolvency Service,24/02/2014,Office Supplies and Services,OFFICIAL RECEIVER SERVICES                                                                          ,NEOPOST LIMITED (CONSUMABLES),BA0000272331,249.58,597265489
BIS,The Insolvency Service,24/02/2014,Postage,OFFICIAL RECEIVER SERVICES                                                                          ,NEOPOST LIMITED (CONSUMABLES),BA0000272309,23.19,597265489
BIS,The Insolvency Service,03/02/2014,Postage,BUSINESS SERVICES DIRECTORATE                                                                       ,NEOPOST LTD - FRANKING TOP UPS,BA0000271674,800.00,
BIS,The Insolvency Service,05/02/2014,Postage,BUSINESS SERVICES DIRECTORATE                                                                       ,NEOPOST LTD - FRANKING TOP UPS,BA0000271792,800.00,
BIS,The Insolvency Service,21/02/2014,Postage,BUSINESS SERVICES DIRECTORATE                                                                       ,NEOPOST LTD - FRANKING TOP UPS,BA0000272291,800.00,
BIS,The Insolvency Service,21/02/2014,Postage,BUSINESS SERVICES DIRECTORATE                                                                       ,NEOPOST LTD - FRANKING TOP UPS,BA0000272291,"1,000.00",
BIS,The Insolvency Service,05/02/2014,Postage,INFORMATION TECHNOLOGY                                                                              ,NEOPOST LTD - FRANKING TOP UPS,BA0000271792,"1,000.00",
BIS,The Insolvency Service,21/02/2014,Postage,INFORMATION TECHNOLOGY                                                                              ,NEOPOST LTD - FRANKING TOP UPS,BA0000272291,"1,000.00",
BIS,The Insolvency Service,27/02/2014,Postage,INFORMATION TECHNOLOGY                                                                              ,NEOPOST LTD - FRANKING TOP UPS,BA0000272437,"5,000.00",
BIS,The Insolvency Service,03/02/2014,Postage,OFFICIAL RECEIVER SERVICES                                                                          ,NEOPOST LTD - FRANKING TOP UPS,BA0000271674,150.00,
BIS,The Insolvency Service,03/02/2014,Postage,OFFICIAL RECEIVER SERVICES                                                                          ,NEOPOST LTD - FRANKING TOP UPS,BA0000271674,182.00,
BIS,The Insolvency Service,03/02/2014,Postage,OFFICIAL RECEIVER SERVICES                                                                          ,NEOPOST LTD - FRANKING TOP UPS,BA0000271674,200.00,
BIS,The Insolvency Service,03/02/2014,Postage,OFFICIAL RECEIVER SERVICES                                                                          ,NEOPOST LTD - FRANKING TOP UPS,BA0000271674,230.00,
BIS,The Insolvency Service,03/02/2014,Postage,OFFICIAL RECEIVER SERVICES                                                                          ,NEOPOST LTD - FRANKING TOP UPS,BA0000271674,243.00,
BIS,The Insolvency Service,03/02/2014,Postage,OFFICIAL RECEIVER SERVICES                                                                          ,NEOPOST LTD - FRANKING TOP UPS,BA0000271674,270.00,
BIS,The Insolvency Service,03/02/2014,Postage,OFFICIAL RECEIVER SERVICES                                                                          ,NEOPOST LTD - FRANKING TOP UPS,BA0000271674,500.00,
BIS,The Insolvency Service,03/02/2014,Postage,OFFICIAL RECEIVER SERVICES                                                                          ,NEOPOST LTD - FRANKING TOP UPS,BA0000271674,500.00,
BIS,The Insolvency Service,03/02/2014,Postage,OFFICIAL RECEIVER SERVICES                                                                          ,NEOPOST LTD - FRANKING TOP UPS,BA0000271674,500.00,
BIS,The Insolvency Service,03/02/2014,Postage,OFFICIAL RECEIVER SERVICES                                                                          ,NEOPOST LTD - FRANKING TOP UPS,BA0000271674,518.00,
BIS,The Insolvency Service,03/02/2014,Postage,OFFICIAL RECEIVER SERVICES                                                                          ,NEOPOST LTD - FRANKING TOP UPS,BA0000271674,657.00,
BIS,The Insolvency Service,03/02/2014,Postage,OFFICIAL RECEIVER SERVICES                                                                          ,NEOPOST LTD - FRANKING TOP UPS,BA0000271674,900.00,
BIS,The Insolvency Service,03/02/2014,Postage,OFFICIAL RECEIVER SERVICES                                                                          ,NEOPOST LTD - FRANKING TOP UPS,BA0000271674,"1,000.00",
BIS,The Insolvency Service,05/02/2014,Postage,OFFICIAL RECEIVER SERVICES                                                                          ,NEOPOST LTD - FRANKING TOP UPS,BA0000271792,150.00,
BIS,The Insolvency Service,05/02/2014,Postage,OFFICIAL RECEIVER SERVICES                                                                          ,NEOPOST LTD - FRANKING TOP UPS,BA0000271792,200.00,
BIS,The Insolvency Service,05/02/2014,Postage,OFFICIAL RECEIVER SERVICES                                                                          ,NEOPOST LTD - FRANKING TOP UPS,BA0000271792,205.00,
BIS,The Insolvency Service,05/02/2014,Postage,OFFICIAL RECEIVER SERVICES                                                                          ,NEOPOST LTD - FRANKING TOP UPS,BA0000271792,230.00,
BIS,The Insolvency Service,05/02/2014,Postage,OFFICIAL RECEIVER SERVICES                                                                          ,NEOPOST LTD - FRANKING TOP UPS,BA0000271792,270.00,
BIS,The Insolvency Service,05/02/2014,Postage,OFFICIAL RECEIVER SERVICES                                                                          ,NEOPOST LTD - FRANKING TOP UPS,BA0000271792,295.00,
BIS,The Insolvency Service,05/02/2014,Postage,OFFICIAL RECEIVER SERVICES                                                                          ,NEOPOST LTD - FRANKING TOP UPS,BA0000271792,500.00,
BIS,The Insolvency Service,05/02/2014,Postage,OFFICIAL RECEIVER SERVICES                                                                          ,NEOPOST LTD - FRANKING TOP UPS,BA0000271792,600.00,
BIS,The Insolvency Service,05/02/2014,Postage,OFFICIAL RECEIVER SERVICES                                                                          ,NEOPOST LTD - FRANKING TOP UPS,BA0000271792,600.00,
BIS,The Insolvency Service,21/02/2014,Postage,OFFICIAL RECEIVER SERVICES                                                                          ,NEOPOST LTD - FRANKING TOP UPS,BA0000272291,150.00,
BIS,The Insolvency Service,21/02/2014,Postage,OFFICIAL RECEIVER SERVICES                                                                          ,NEOPOST LTD - FRANKING TOP UPS,BA0000272291,182.00,
BIS,The Insolvency Service,21/02/2014,Postage,OFFICIAL RECEIVER SERVICES                                                                          ,NEOPOST LTD - FRANKING TOP UPS,BA0000272291,200.00,
BIS,The Insolvency Service,21/02/2014,Postage,OFFICIAL RECEIVER SERVICES                                                                          ,NEOPOST LTD - FRANKING TOP UPS,BA0000272291,205.00,
BIS,The Insolvency Service,21/02/2014,Postage,OFFICIAL RECEIVER SERVICES                                                                          ,NEOPOST LTD - FRANKING TOP UPS,BA0000272291,243.00,
BIS,The Insolvency Service,21/02/2014,Postage,OFFICIAL RECEIVER SERVICES                                                                          ,NEOPOST LTD - FRANKING TOP UPS,BA0000272291,295.00,
BIS,The Insolvency Service,21/02/2014,Postage,OFFICIAL RECEIVER SERVICES                                                                          ,NEOPOST LTD - FRANKING TOP UPS,BA0000272291,500.00,
BIS,The Insolvency Service,21/02/2014,Postage,OFFICIAL RECEIVER SERVICES                                                                          ,NEOPOST LTD - FRANKING TOP UPS,BA0000272291,500.00,
BIS,The Insolvency Service,21/02/2014,Postage,OFFICIAL RECEIVER SERVICES                                                                          ,NEOPOST LTD - FRANKING TOP UPS,BA0000272291,518.00,
BIS,The Insolvency Service,21/02/2014,Postage,OFFICIAL RECEIVER SERVICES                                                                          ,NEOPOST LTD - FRANKING TOP UPS,BA0000272291,657.00,
BIS,The Insolvency Service,21/02/2014,Postage,OFFICIAL RECEIVER SERVICES                                                                          ,NEOPOST LTD - FRANKING TOP UPS,BA0000272291,"1,000.00",
BIS,The Insolvency Service,21/02/2014,Postage,OFFICIAL RECEIVER SERVICES                                                                          ,NEOPOST LTD - FRANKING TOP UPS,BA0000272291,"1,000.00",
BIS,The Insolvency Service,27/02/2014,Postage,OFFICIAL RECEIVER SERVICES                                                                          ,NEOPOST LTD - FRANKING TOP UPS,BA0000272437,100.00,
BIS,The Insolvency Service,27/02/2014,Postage,OFFICIAL RECEIVER SERVICES                                                                          ,NEOPOST LTD - FRANKING TOP UPS,BA0000272437,150.00,
BIS,The Insolvency Service,27/02/2014,Postage,OFFICIAL RECEIVER SERVICES                                                                          ,NEOPOST LTD - FRANKING TOP UPS,BA0000272437,182.00,
BIS,The Insolvency Service,27/02/2014,Postage,OFFICIAL RECEIVER SERVICES                                                                          ,NEOPOST LTD - FRANKING TOP UPS,BA0000272437,200.00,
BIS,The Insolvency Service,27/02/2014,Postage,OFFICIAL RECEIVER SERVICES                                                                          ,NEOPOST LTD - FRANKING TOP UPS,BA0000272437,205.00,
BIS,The Insolvency Service,27/02/2014,Postage,OFFICIAL RECEIVER SERVICES                                                                          ,NEOPOST LTD - FRANKING TOP UPS,BA0000272437,230.00,
BIS,The Insolvency Service,27/02/2014,Postage,OFFICIAL RECEIVER SERVICES                                                                          ,NEOPOST LTD - FRANKING TOP UPS,BA0000272437,243.00,
BIS,The Insolvency Service,27/02/2014,Postage,OFFICIAL RECEIVER SERVICES                                                                          ,NEOPOST LTD - FRANKING TOP UPS,BA0000272437,270.00,
BIS,The Insolvency Service,27/02/2014,Postage,OFFICIAL RECEIVER SERVICES                                                                          ,NEOPOST LTD - FRANKING TOP UPS,BA0000272437,295.00,
BIS,The Insolvency Service,27/02/2014,Postage,OFFICIAL RECEIVER SERVICES                                                                          ,NEOPOST LTD - FRANKING TOP UPS,BA0000272437,500.00,
BIS,The Insolvency Service,27/02/2014,Postage,OFFICIAL RECEIVER SERVICES                                                                          ,NEOPOST LTD - FRANKING TOP UPS,BA0000272437,500.00,
BIS,The Insolvency Service,27/02/2014,Postage,OFFICIAL RECEIVER SERVICES                                                                          ,NEOPOST LTD - FRANKING TOP UPS,BA0000272437,500.00,
BIS,The Insolvency Service,27/02/2014,Postage,OFFICIAL RECEIVER SERVICES                                                                          ,NEOPOST LTD - FRANKING TOP UPS,BA0000272437,518.00,
BIS,The Insolvency Service,27/02/2014,Postage,OFFICIAL RECEIVER SERVICES                                                                          ,NEOPOST LTD - FRANKING TOP UPS,BA0000272437,600.00,
BIS,The Insolvency Service,27/02/2014,Postage,OFFICIAL RECEIVER SERVICES                                                                          ,NEOPOST LTD - FRANKING TOP UPS,BA0000272437,657.00,
BIS,The Insolvency Service,27/02/2014,Postage,OFFICIAL RECEIVER SERVICES                                                                          ,NEOPOST LTD - FRANKING TOP UPS,BA0000272437,700.00,
BIS,The Insolvency Service,27/02/2014,Postage,OFFICIAL RECEIVER SERVICES                                                                          ,NEOPOST LTD - FRANKING TOP UPS,BA0000272437,800.00,
BIS,The Insolvency Service,27/02/2014,Postage,OFFICIAL RECEIVER SERVICES                                                                          ,NEOPOST LTD - FRANKING TOP UPS,BA0000272437,900.00,
BIS,The Insolvency Service,27/02/2014,Postage,OFFICIAL RECEIVER SERVICES                                                                          ,NEOPOST LTD - FRANKING TOP UPS,BA0000272437,"1,000.00",
BIS,The Insolvency Service,27/02/2014,Postage,OFFICIAL RECEIVER SERVICES                                                                          ,NEOPOST LTD - FRANKING TOP UPS,BA0000272437,"1,000.00",
BIS,The Insolvency Service,27/02/2014,Postage,OFFICIAL RECEIVER SERVICES                                                                          ,NEOPOST LTD - FRANKING TOP UPS,BA0000272437,"1,000.00",
BIS,The Insolvency Service,27/02/2014,Postage,OFFICIAL RECEIVER SERVICES                                                                          ,NEOPOST LTD - FRANKING TOP UPS,BA0000272437,"1,000.00",
BIS,The Insolvency Service,03/02/2014,Agency Workers,"PLANNING, PERFORMANCE & PROJECTS                                                                    ",NETWORKERS INTERNATIONAL PLC,BA0000271680,"2,162.22",766375002
BIS,The Insolvency Service,17/02/2014,Agency Workers,"PLANNING, PERFORMANCE & PROJECTS                                                                    ",NETWORKERS INTERNATIONAL PLC,BA0000272111,"2,162.22",766375002
BIS,The Insolvency Service,24/02/2014,Agency Workers,"PLANNING, PERFORMANCE & PROJECTS                                                                    ",NETWORKERS INTERNATIONAL PLC,BA0000272320,"2,162.22",766375002
BIS,The Insolvency Service,24/02/2014,Agency Workers,"PLANNING, PERFORMANCE & PROJECTS                                                                    ",NETWORKERS INTERNATIONAL PLC,BA0000272321,"2,162.22",766375002
BIS,The Insolvency Service,17/02/2014,Computer and IT Systems,BUSINESS SERVICES DIRECTORATE                                                                       ,NORTHGATE INFORMATION SOLUTIONS UK LTD.,BA0000272143,"34,266.32",207588545
BIS,The Insolvency Service,17/02/2014,Computer and IT Systems,BUSINESS SERVICES DIRECTORATE                                                                       ,NORTHGATE INFORMATION SOLUTIONS UK LTD.,BA0000272149,"25,225.34",207588545
BIS,The Insolvency Service,28/02/2014,Computer and IT Systems,INFORMATION TECHNOLOGY                                                                              ,NORTHGATE INFORMATION SOLUTIONS UK LTD.,BA0000272540,"84,705.73",207588545
BIS,The Insolvency Service,28/02/2014,Computer and IT Systems,INFORMATION TECHNOLOGY                                                                              ,NORTHGATE INFORMATION SOLUTIONS UK LTD.,BA0000272541,"-6,408.46",207588545
BIS,The Insolvency Service,28/02/2014,Computer and IT Systems,"PLANNING, PERFORMANCE & PROJECTS                                                                    ",NORTHGATE INFORMATION SOLUTIONS UK LTD.,BA0000272538,"141,552.72",207588545
BIS,The Insolvency Service,11/02/2014,Accommodation,ESTATES,NPOWER BUSINESS,BA0000271895,208.50,768362492
BIS,The Insolvency Service,11/02/2014,Accommodation,ESTATES,NPOWER BUSINESS,BA0000271896,712.13,768362492
BIS,The Insolvency Service,21/02/2014,Accommodation,ESTATES,NPOWER BUSINESS,BA0000272285,"5,418.69",768362492
BIS,The Insolvency Service,21/02/2014,Telecoms,BUSINESS SERVICES DIRECTORATE                                                                       ,O2 (UK) LTD,BA0000272272,39.48,778603785
BIS,The Insolvency Service,21/02/2014,Telecoms,INVESTIGATION & ENFORCEMENT SERVICES                                                                ,O2 (UK) LTD,BA0000272272,40.80,778603785
BIS,The Insolvency Service,29/01/2014,Training Costs,PEOPLE & CAPABILITY                                                                                 ,OSIRON SUMMIT                                               ,BA0000272436,100.00,
BIS,The Insolvency Service,18/01/2014,Travel and Subsistence,EXTERNAL AFFAIRS                                                                                    ,OYSTER AUTO TOP UP,BA0000272436,20.00,
BIS,The Insolvency Service,05/01/2014,Travel and Subsistence,OFFICIAL RECEIVER SERVICES                                                                          ,OYSTER AUTO TOP UP,BA0000272436,20.00,
BIS,The Insolvency Service,10/01/2014,Travel and Subsistence,OFFICIAL RECEIVER SERVICES                                                                          ,OYSTER AUTO TOP UP,BA0000272436,20.00,
BIS,The Insolvency Service,12/01/2014,Travel and Subsistence,OFFICIAL RECEIVER SERVICES                                                                          ,OYSTER AUTO TOP UP,BA0000272436,20.00,
BIS,The Insolvency Service,18/01/2014,Travel and Subsistence,OFFICIAL RECEIVER SERVICES                                                                          ,OYSTER AUTO TOP UP,BA0000272436,20.00,
BIS,The Insolvency Service,25/01/2014,Travel and Subsistence,OFFICIAL RECEIVER SERVICES                                                                          ,OYSTER AUTO TOP UP,BA0000272436,20.00,
BIS,The Insolvency Service,01/02/2014,Travel and Subsistence,OFFICIAL RECEIVER SERVICES                                                                          ,OYSTER AUTO TOP UP,BA0000272436,20.00,
BIS,The Insolvency Service,28/02/2014,Insolvency Case Related Costs,OFFICIAL RECEIVER SERVICES                                                                          ,PARCELFORCE WORLDWIDE,BA0000272543,359.93,243170002
BIS,The Insolvency Service,28/02/2014,Insolvency Case Related Costs,OFFICIAL RECEIVER SERVICES                                                                          ,PARCELFORCE WORLDWIDE,BA0000272544,802.60,243170002
BIS,The Insolvency Service,19/02/2014,Computer and IT Systems,INFORMATION TECHNOLOGY                                                                              ,PARITY RESOURCES LTD,BA0000272206,"10,058.93",649913985
BIS,The Insolvency Service,19/02/2014,Computer and IT Systems,INFORMATION TECHNOLOGY                                                                              ,PARITY RESOURCES LTD,BA0000272153,914.45,649913985
BIS,The Insolvency Service,17/02/2014,Accommodation,ESTATES,PHS WASTETECH LTD,BA0000272137,131.80,777400713
BIS,The Insolvency Service,19/02/2014,Accommodation,ESTATES,PHS WASTETECH LTD,BA0000272181,131.80,777400713
BIS,The Insolvency Service,28/02/2014,Conferences,"PLANNING, PERFORMANCE & PROJECTS                                                                    ",PI-SPACE                                                    ,BA0000272555,"8,334.00",101133981
BIS,The Insolvency Service,19/01/2014,Computer and IT Systems,BUSINESS SERVICES DIRECTORATE                                                                       ,PLUSNET PLC,BA0000272436,34.19,
BIS,The Insolvency Service,24/01/2014,Office Supplies and Services,FINANCE AND COMMERCIAL                                                                              ,POLIMIL,BA0000272436,384.00,
BIS,The Insolvency Service,20/01/2014,Postage,OFFICIAL RECEIVER SERVICES                                                                          ,POST OFFICE LTD,BA0000272436,59.16,
BIS,The Insolvency Service,22/01/2014,Postage,OFFICIAL RECEIVER SERVICES                                                                          ,POST OFFICE LTD,BA0000272436,60.00,
BIS,The Insolvency Service,17/01/2014,Accommodation,FINANCE AND COMMERCIAL                                                                              ,POSTURITE (UK) LTD.,BA0000272436,753.42,
BIS,The Insolvency Service,22/01/2014,Accommodation,FINANCE AND COMMERCIAL                                                                              ,POSTURITE (UK) LTD.,BA0000272436,35.65,
BIS,The Insolvency Service,23/01/2014,Accommodation,FINANCE AND COMMERCIAL                                                                              ,POSTURITE (UK) LTD.,BA0000272436,10.15,
BIS,The Insolvency Service,23/01/2014,Accommodation,FINANCE AND COMMERCIAL                                                                              ,POSTURITE (UK) LTD.,BA0000272436,153.86,
BIS,The Insolvency Service,30/01/2014,Accommodation,FINANCE AND COMMERCIAL                                                                              ,POSTURITE (UK) LTD.,BA0000272436,829.53,
BIS,The Insolvency Service,13/02/2014,Accounting and Banking,FINANCE AND COMMERCIAL,PPS,BA0000271991,899.57,
BIS,The Insolvency Service,13/02/2014,Accounting and Banking,FINANCE AND COMMERCIAL,PPS,BA0000271991,"2,195.27",
BIS,The Insolvency Service,26/02/2014,Investigation and Enforcement Costs,CUSTOMER AND COMMUNICATIONS                                                                         ,PRECISE MEDIA MONITORING LTD AKA ENERGY DATA SERVICES LTD,BA0000272418,974.50,849092202
BIS,The Insolvency Service,26/02/2014,Investigation and Enforcement Costs,CUSTOMER AND COMMUNICATIONS                                                                         ,PRECISE MEDIA MONITORING LTD AKA ENERGY DATA SERVICES LTD,BA0000272413,"1,229.88",849092202
BIS,The Insolvency Service,26/02/2014,Investigation and Enforcement Costs,CUSTOMER AND COMMUNICATIONS                                                                         ,PRECISE MEDIA MONITORING LTD AKA ENERGY DATA SERVICES LTD,BA0000272419,993.11,849092202
BIS,The Insolvency Service,26/02/2014,Investigation and Enforcement Costs,CUSTOMER AND COMMUNICATIONS                                                                         ,PRECISE MEDIA MONITORING LTD AKA ENERGY DATA SERVICES LTD,BA0000272420,610.18,849092202
BIS,The Insolvency Service,21/01/2014,Office Supplies and Services,FINANCE AND COMMERCIAL                                                                              ,PRET A MANGER (EUROPE) LIMITED                              ,BA0000272436,65.85,927137420
BIS,The Insolvency Service,08/01/2014,Training Costs,FINANCE AND COMMERCIAL,QA LIMITED,BA0000272436,460.80,
BIS,The Insolvency Service,11/02/2014,Training Costs,PEOPLE & CAPABILITY                                                                                 ,QA LIMITED,BA0000271971,"3,294.00",
BIS,The Insolvency Service,13/02/2014,Computer and IT Systems,INFORMATION TECHNOLOGY                                                                              ,RE THINK RECRUITMENT SOLUTIONS LTD,BA0000272027,"10,987.68",905139440
BIS,The Insolvency Service,07/02/2014,Accommodation,ESTATES,ROWLAND JONES CHARTERED SURVEYORS,BA0000271846,8.63,933478990
BIS,The Insolvency Service,07/02/2014,Accommodation,ESTATES,ROWLAND JONES CHARTERED SURVEYORS,BA0000271846,363.69,933478990
BIS,The Insolvency Service,07/02/2014,Accommodation,ESTATES,ROWLAND JONES CHARTERED SURVEYORS,BA0000271846,879.96,933478990
BIS,The Insolvency Service,07/02/2014,Accommodation,ESTATES,ROWLAND JONES CHARTERED SURVEYORS,BA0000271847,8.64,933478990
BIS,The Insolvency Service,07/02/2014,Accommodation,ESTATES,ROWLAND JONES CHARTERED SURVEYORS,BA0000271847,363.69,933478990
BIS,The Insolvency Service,07/02/2014,Accommodation,ESTATES,ROWLAND JONES CHARTERED SURVEYORS,BA0000271847,880.65,933478990
BIS,The Insolvency Service,07/02/2014,Accommodation,ESTATES,ROWLAND JONES CHARTERED SURVEYORS,BA0000271848,11.01,933478990
BIS,The Insolvency Service,07/02/2014,Accommodation,ESTATES,ROWLAND JONES CHARTERED SURVEYORS,BA0000271848,464.16,933478990
BIS,The Insolvency Service,07/02/2014,Accommodation,ESTATES,ROWLAND JONES CHARTERED SURVEYORS,BA0000271848,"1,123.16",933478990
BIS,The Insolvency Service,03/02/2014,Insolvency Case Related Costs,OFFICIAL RECEIVER SERVICES                                                                          ,ROYAL MAIL,BA0000271679,"11,160.00",
BIS,The Insolvency Service,19/02/2014,Postage,ESTATES,ROYAL MAIL GROUP LTD,BA0000272203,93.82,243170002
BIS,The Insolvency Service,21/02/2014,Postage,ESTATES,ROYAL MAIL GROUP LTD,BA0000272274,2.16,243170002
BIS,The Insolvency Service,21/02/2014,Postage,ESTATES,ROYAL MAIL GROUP LTD,BA0000272274,64.86,243170002
BIS,The Insolvency Service,27/02/2014,Postage,ESTATES,ROYAL MAIL GROUP LTD,BA0000272462,86.00,243170002
BIS,The Insolvency Service,26/02/2014,Postage,FACILITIES                                                                                          ,ROYAL MAIL GROUP LTD,BA0000272421,4.06,243170002
BIS,The Insolvency Service,26/02/2014,Postage,FACILITIES                                                                                          ,ROYAL MAIL GROUP LTD,BA0000272421,63.28,243170002
BIS,The Insolvency Service,19/02/2014,Postage,INFORMATION TECHNOLOGY                                                                              ,ROYAL MAIL GROUP LTD,BA0000272205,93.38,243170002
BIS,The Insolvency Service,24/02/2014,Postage,INFORMATION TECHNOLOGY                                                                              ,ROYAL MAIL GROUP LTD,BA0000272336,303.60,243170002
BIS,The Insolvency Service,24/02/2014,Postage,INFORMATION TECHNOLOGY                                                                              ,ROYAL MAIL GROUP LTD,BA0000272337,2.38,243170002
BIS,The Insolvency Service,07/02/2014,Postage,OFFICIAL RECEIVER SERVICES                                                                          ,ROYAL MAIL GROUP LTD,BA0000271856,75.82,243170002
BIS,The Insolvency Service,11/02/2014,Postage,OFFICIAL RECEIVER SERVICES                                                                          ,ROYAL MAIL GROUP LTD,BA0000271890,25.29,243170002
BIS,The Insolvency Service,13/02/2014,Postage,OFFICIAL RECEIVER SERVICES                                                                          ,ROYAL MAIL GROUP LTD,BA0000272045,26.05,243170002
BIS,The Insolvency Service,13/02/2014,Postage,OFFICIAL RECEIVER SERVICES                                                                          ,ROYAL MAIL GROUP LTD,BA0000272045,61.62,243170002
BIS,The Insolvency Service,13/02/2014,Postage,OFFICIAL RECEIVER SERVICES                                                                          ,ROYAL MAIL GROUP LTD,BA0000272050,11.70,243170002
BIS,The Insolvency Service,21/02/2014,Postage,OFFICIAL RECEIVER SERVICES                                                                          ,ROYAL MAIL GROUP LTD,BA0000272275,22.74,243170002
BIS,The Insolvency Service,26/02/2014,Postage,OFFICIAL RECEIVER SERVICES                                                                          ,ROYAL MAIL GROUP LTD,BA0000272375,89.27,243170002
BIS,The Insolvency Service,26/02/2014,Postage,OFFICIAL RECEIVER SERVICES                                                                          ,ROYAL MAIL GROUP LTD,BA0000272403,86.00,243170002
BIS,The Insolvency Service,26/02/2014,Postage,OFFICIAL RECEIVER SERVICES                                                                          ,ROYAL MAIL GROUP LTD,BA0000272406,0.46,243170002
BIS,The Insolvency Service,26/02/2014,Postage,OFFICIAL RECEIVER SERVICES                                                                          ,ROYAL MAIL GROUP LTD,BA0000272406,780.00,243170002
BIS,The Insolvency Service,27/02/2014,Postage,OFFICIAL RECEIVER SERVICES                                                                          ,ROYAL MAIL GROUP LTD,BA0000272467,19.25,243170002
BIS,The Insolvency Service,28/02/2014,Postage,OFFICIAL RECEIVER SERVICES                                                                          ,ROYAL MAIL GROUP LTD,BA0000272549,118.42,243170002
BIS,The Insolvency Service,28/02/2014,Postage,OFFICIAL RECEIVER SERVICES                                                                          ,ROYAL MAIL GROUP LTD,BA0000272560,775.00,243170002
BIS,The Insolvency Service,21/02/2014,Accommodation,ESTATES,SCOTTISH POWER,BA0000272286,"1,221.12",659372008
BIS,The Insolvency Service,05/02/2014,Accommodation,ESTATES,SCOTTISH POWER GROUP,BA0000271748,13.05,659372008
BIS,The Insolvency Service,28/02/2014,Accommodation,"PLANNING, PERFORMANCE & PROJECTS                                                                    ",SDT INTERNATIONAL LTD,BA0000272533,"3,170.40",909273609
BIS,The Insolvency Service,13/02/2014,Office Supplies and Services,ESTATES,SELECTA UK LTD,BA0000272035,527.66,911021490
BIS,The Insolvency Service,26/02/2014,Office Supplies and Services,ESTATES,SELECTA UK LTD,BA0000272407,7.46,911021490
BIS,The Insolvency Service,26/02/2014,Office Supplies and Services,ESTATES,SELECTA UK LTD,BA0000272407,27.40,911021490
BIS,The Insolvency Service,26/02/2014,Office Supplies and Services,ESTATES,SELECTA UK LTD,BA0000272407,35.28,911021490
BIS,The Insolvency Service,26/02/2014,Office Supplies and Services,ESTATES,SELECTA UK LTD,BA0000272407,35.32,911021490
BIS,The Insolvency Service,11/02/2014,Accommodation,OR Accom Chatham                                                                                    ,SERCO  LTD,BA0000271892,77.55,207523388
BIS,The Insolvency Service,07/02/2014,Investigation and Enforcement Costs,INVESTIGATION & ENFORCEMENT SERVICES                                                                ,SHEPHERD & WEDDERBURN WS,BA0000271841,201.95,890559386
BIS,The Insolvency Service,07/02/2014,Investigation and Enforcement Costs,INVESTIGATION & ENFORCEMENT SERVICES                                                                ,SHEPHERD & WEDDERBURN WS,BA0000271841,"33,076.50",890559386
BIS,The Insolvency Service,07/02/2014,Investigation and Enforcement Costs,INVESTIGATION & ENFORCEMENT SERVICES                                                                ,SHEPHERD & WEDDERBURN WS,BA0000271841,245.93,890559386
BIS,The Insolvency Service,07/02/2014,Investigation and Enforcement Costs,INVESTIGATION & ENFORCEMENT SERVICES                                                                ,SHEPHERD & WEDDERBURN WS,BA0000271841,"8,258.15",890559386
BIS,The Insolvency Service,07/02/2014,Investigation and Enforcement Costs,INVESTIGATION & ENFORCEMENT SERVICES                                                                ,SHEPHERD & WEDDERBURN WS,BA0000271841,"1,396.01",890559386
BIS,The Insolvency Service,07/02/2014,Investigation and Enforcement Costs,INVESTIGATION & ENFORCEMENT SERVICES                                                                ,SHEPHERD & WEDDERBURN WS,BA0000271841,"1,936.60",890559386
BIS,The Insolvency Service,11/02/2014,Insolvency Case Related Costs,FINANCE AND COMMERCIAL,SHULMANS LLP                                                ,BA0000271936,"4,000.00",
BIS,The Insolvency Service,25/02/2014,Insolvency Case Related Costs,FINANCE AND COMMERCIAL,SIMON SHACKELL                                              ,BA0000272381,100.00,
BIS,The Insolvency Service,26/02/2014,Insolvency Case Related Costs,OFFICIAL RECEIVER SERVICES                                                                          ,SIRS (EUROPE) LTD,BA0000272370,"2,010.00",990834974
BIS,The Insolvency Service,26/02/2014,Investigation and Enforcement Costs,INVESTIGATION & ENFORCEMENT SERVICES                                                                ,SIRS (EUROPE) LTD,BA0000272370,550.00,990834974
BIS,The Insolvency Service,26/02/2014,Investigation and Enforcement Costs,OFFICIAL RECEIVER SERVICES                                                                          ,SIRS (EUROPE) LTD,BA0000272370,150.00,990834974
BIS,The Insolvency Service,07/02/2014,Computer and IT Systems,INFORMATION TECHNOLOGY                                                                              ,SNAP SURVEYS LTD,BA0000271858,838.80,449225047
BIS,The Insolvency Service,07/02/2014,Agency Workers,"PLANNING, PERFORMANCE & PROJECTS                                                                    ",SPRING TECHNOLOGY STAFFING,BA0000271853,220.50,
BIS,The Insolvency Service,07/02/2014,Agency Workers,"PLANNING, PERFORMANCE & PROJECTS                                                                    ",SPRING TECHNOLOGY STAFFING,BA0000271826,"3,468.00",
BIS,The Insolvency Service,07/02/2014,Agency Workers,"PLANNING, PERFORMANCE & PROJECTS                                                                    ",SPRING TECHNOLOGY STAFFING,BA0000271836,"3,295.14",
BIS,The Insolvency Service,11/02/2014,Agency Workers,"PLANNING, PERFORMANCE & PROJECTS                                                                    ",SPRING TECHNOLOGY STAFFING,BA0000271897,"3,295.14",
BIS,The Insolvency Service,11/02/2014,Agency Workers,"PLANNING, PERFORMANCE & PROJECTS                                                                    ",SPRING TECHNOLOGY STAFFING,BA0000271910,"3,295.14",
BIS,The Insolvency Service,11/02/2014,Agency Workers,"PLANNING, PERFORMANCE & PROJECTS                                                                    ",SPRING TECHNOLOGY STAFFING,BA0000271919,"4,054.86",
BIS,The Insolvency Service,11/02/2014,Agency Workers,"PLANNING, PERFORMANCE & PROJECTS                                                                    ",SPRING TECHNOLOGY STAFFING,BA0000271905,"3,885.90",
BIS,The Insolvency Service,11/02/2014,Agency Workers,"PLANNING, PERFORMANCE & PROJECTS                                                                    ",SPRING TECHNOLOGY STAFFING,BA0000271926,"3,953.70",
BIS,The Insolvency Service,11/02/2014,Agency Workers,"PLANNING, PERFORMANCE & PROJECTS                                                                    ",SPRING TECHNOLOGY STAFFING,BA0000271929,"3,154.20",
BIS,The Insolvency Service,11/02/2014,Agency Workers,"PLANNING, PERFORMANCE & PROJECTS                                                                    ",SPRING TECHNOLOGY STAFFING,BA0000271930,"3,646.50",
BIS,The Insolvency Service,11/02/2014,Agency Workers,"PLANNING, PERFORMANCE & PROJECTS                                                                    ",SPRING TECHNOLOGY STAFFING,BA0000271931,"1,980.00",
BIS,The Insolvency Service,11/02/2014,Agency Workers,"PLANNING, PERFORMANCE & PROJECTS                                                                    ",SPRING TECHNOLOGY STAFFING,BA0000271932,"3,300.00",
BIS,The Insolvency Service,19/02/2014,Agency Workers,"PLANNING, PERFORMANCE & PROJECTS                                                                    ",SPRING TECHNOLOGY STAFFING,BA0000272208,"3,472.56",
BIS,The Insolvency Service,19/02/2014,Agency Workers,"PLANNING, PERFORMANCE & PROJECTS                                                                    ",SPRING TECHNOLOGY STAFFING,BA0000272209,"3,295.14",
BIS,The Insolvency Service,24/02/2014,Agency Workers,"PLANNING, PERFORMANCE & PROJECTS                                                                    ",SPRING TECHNOLOGY STAFFING,BA0000272317,"3,295.14",
BIS,The Insolvency Service,26/02/2014,Agency Workers,"PLANNING, PERFORMANCE & PROJECTS                                                                    ",SPRING TECHNOLOGY STAFFING,BA0000272414,"3,295.14",
BIS,The Insolvency Service,26/02/2014,Agency Workers,"PLANNING, PERFORMANCE & PROJECTS                                                                    ",SPRING TECHNOLOGY STAFFING,BA0000272415,"3,459.29",
BIS,The Insolvency Service,26/02/2014,Agency Workers,"PLANNING, PERFORMANCE & PROJECTS                                                                    ",SPRING TECHNOLOGY STAFFING,BA0000272416,"3,473.34",
BIS,The Insolvency Service,26/02/2014,Agency Workers,"PLANNING, PERFORMANCE & PROJECTS                                                                    ",SPRING TECHNOLOGY STAFFING,BA0000272417,"3,476.40",
BIS,The Insolvency Service,28/02/2014,Computer and IT Systems,INFORMATION TECHNOLOGY                                                                              ,SPRING TECHNOLOGY STAFFING,BA0000272507,"3,281.16",
BIS,The Insolvency Service,11/02/2014,Training Costs,PEOPLE & CAPABILITY                                                                                 ,ST JOHN AMBULANCE,BA0000271887,333.60,564883916
BIS,The Insolvency Service,24/02/2014,Conferences,BUSINESS SERVICES DIRECTORATE                                                                       ,ST MATTHEWS WESTMINSTER                                     ,BA0000272329,879.84,736148330
BIS,The Insolvency Service,11/02/2014,Accommodation,"PLANNING, PERFORMANCE & PROJECTS",Staff Payment,BA0000271898,81.80,
BIS,The Insolvency Service,28/02/2014,Accounting and Banking,BUSINESS SERVICES DIRECTORATE                                                                       ,Staff Payment,BA0000272529,9.50,
BIS,The Insolvency Service,27/02/2014,Employee Related Costs,INFORMATION TECHNOLOGY                                                                              ,Staff Payment,BA0000272451,8.00,
BIS,The Insolvency Service,05/02/2014,Employee Related Costs,OFFICIAL RECEIVER SERVICES                                                                          ,Staff Payment,BA0000271790,11.25,
BIS,The Insolvency Service,07/02/2014,Employee Related Costs,OFFICIAL RECEIVER SERVICES                                                                          ,Staff Payment,BA0000271811,30.00,
BIS,The Insolvency Service,24/02/2014,Employee Related Costs,OFFICIAL RECEIVER SERVICES                                                                          ,Staff Payment,BA0000272310,27.50,
BIS,The Insolvency Service,03/02/2014,Employee Related Costs,PEOPLE & CAPABILITY                                                                                 ,Staff Payment,BA0000271707,30.00,
BIS,The Insolvency Service,03/02/2014,Employee Related Costs,PEOPLE & CAPABILITY                                                                                 ,Staff Payment,BA0000271707,90.00,
BIS,The Insolvency Service,03/02/2014,Employee Related Costs,PEOPLE & CAPABILITY                                                                                 ,Staff Payment,BA0000271707,5.00,
BIS,The Insolvency Service,03/02/2014,Employee Related Costs,PEOPLE & CAPABILITY                                                                                 ,Staff Payment,BA0000271707,90.00,
BIS,The Insolvency Service,03/02/2014,Employee Related Costs,PEOPLE & CAPABILITY                                                                                 ,Staff Payment,BA0000271707,25.00,
BIS,The Insolvency Service,05/02/2014,Employee Related Costs,PEOPLE & CAPABILITY                                                                                 ,Staff Payment,BA0000271790,25.00,
BIS,The Insolvency Service,05/02/2014,Employee Related Costs,PEOPLE & CAPABILITY                                                                                 ,Staff Payment,BA0000271790,90.00,
BIS,The Insolvency Service,05/02/2014,Employee Related Costs,PEOPLE & CAPABILITY                                                                                 ,Staff Payment,BA0000271790,90.00,
BIS,The Insolvency Service,05/02/2014,Employee Related Costs,PEOPLE & CAPABILITY                                                                                 ,Staff Payment,BA0000271790,110.00,
BIS,The Insolvency Service,07/02/2014,Employee Related Costs,PEOPLE & CAPABILITY                                                                                 ,Staff Payment,BA0000271828,330.00,
BIS,The Insolvency Service,07/02/2014,Employee Related Costs,PEOPLE & CAPABILITY                                                                                 ,Staff Payment,BA0000271828,205.00,
BIS,The Insolvency Service,07/02/2014,Employee Related Costs,PEOPLE & CAPABILITY                                                                                 ,Staff Payment,BA0000271828,205.00,
BIS,The Insolvency Service,07/02/2014,Employee Related Costs,PEOPLE & CAPABILITY                                                                                 ,Staff Payment,BA0000271828,205.00,
BIS,The Insolvency Service,07/02/2014,Employee Related Costs,PEOPLE & CAPABILITY                                                                                 ,Staff Payment,BA0000271828,205.00,
BIS,The Insolvency Service,07/02/2014,Employee Related Costs,PEOPLE & CAPABILITY                                                                                 ,Staff Payment,BA0000271811,44.50,
BIS,The Insolvency Service,11/02/2014,Employee Related Costs,PEOPLE & CAPABILITY                                                                                 ,Staff Payment,BA0000271898,205.00,
BIS,The Insolvency Service,11/02/2014,Employee Related Costs,PEOPLE & CAPABILITY                                                                                 ,Staff Payment,BA0000271898,205.00,
BIS,The Insolvency Service,11/02/2014,Employee Related Costs,PEOPLE & CAPABILITY                                                                                 ,Staff Payment,BA0000271941,205.00,
BIS,The Insolvency Service,11/02/2014,Employee Related Costs,PEOPLE & CAPABILITY                                                                                 ,Staff Payment,BA0000271941,45.00,
BIS,The Insolvency Service,11/02/2014,Employee Related Costs,PEOPLE & CAPABILITY                                                                                 ,Staff Payment,BA0000271941,69.00,
BIS,The Insolvency Service,11/02/2014,Employee Related Costs,PEOPLE & CAPABILITY                                                                                 ,Staff Payment,BA0000271941,115.00,
BIS,The Insolvency Service,13/02/2014,Employee Related Costs,PEOPLE & CAPABILITY                                                                                 ,Staff Payment,BA0000272011,107.00,
BIS,The Insolvency Service,19/02/2014,Employee Related Costs,PEOPLE & CAPABILITY                                                                                 ,Staff Payment,BA0000272176,205.00,
BIS,The Insolvency Service,19/02/2014,Employee Related Costs,PEOPLE & CAPABILITY                                                                                 ,Staff Payment,BA0000272176,205.00,
BIS,The Insolvency Service,21/02/2014,Employee Related Costs,PEOPLE & CAPABILITY                                                                                 ,Staff Payment,BA0000272239,205.00,
BIS,The Insolvency Service,26/02/2014,Employee Related Costs,PEOPLE & CAPABILITY                                                                                 ,Staff Payment,BA0000272402,90.00,
BIS,The Insolvency Service,26/02/2014,Employee Related Costs,PEOPLE & CAPABILITY                                                                                 ,Staff Payment,BA0000272402,20.00,
BIS,The Insolvency Service,26/02/2014,Employee Related Costs,PEOPLE & CAPABILITY                                                                                 ,Staff Payment,BA0000272402,90.00,
BIS,The Insolvency Service,03/02/2014,Insolvency Case Related Costs,INVESTIGATION & ENFORCEMENT SERVICES                                                                ,Staff Payment,BA0000271707,7.00,
BIS,The Insolvency Service,03/02/2014,Insolvency Case Related Costs,INVESTIGATION & ENFORCEMENT SERVICES                                                                ,Staff Payment,BA0000271707,7.00,
BIS,The Insolvency Service,07/02/2014,Insolvency Case Related Costs,INVESTIGATION & ENFORCEMENT SERVICES                                                                ,Staff Payment,BA0000271828,7.00,
BIS,The Insolvency Service,07/02/2014,Insolvency Case Related Costs,INVESTIGATION & ENFORCEMENT SERVICES                                                                ,Staff Payment,BA0000271828,7.00,
BIS,The Insolvency Service,11/02/2014,Insolvency Case Related Costs,INVESTIGATION & ENFORCEMENT SERVICES                                                                ,Staff Payment,BA0000271898,9.00,
BIS,The Insolvency Service,13/02/2014,Insolvency Case Related Costs,INVESTIGATION & ENFORCEMENT SERVICES                                                                ,Staff Payment,BA0000272011,7.00,
BIS,The Insolvency Service,19/02/2014,Insolvency Case Related Costs,INVESTIGATION & ENFORCEMENT SERVICES                                                                ,Staff Payment,BA0000272176,7.00,
BIS,The Insolvency Service,19/02/2014,Insolvency Case Related Costs,INVESTIGATION & ENFORCEMENT SERVICES                                                                ,Staff Payment,BA0000272176,7.00,
BIS,The Insolvency Service,19/02/2014,Insolvency Case Related Costs,INVESTIGATION & ENFORCEMENT SERVICES                                                                ,Staff Payment,BA0000272213,7.00,
BIS,The Insolvency Service,27/02/2014,Insolvency Case Related Costs,INVESTIGATION & ENFORCEMENT SERVICES                                                                ,Staff Payment,BA0000272451,7.00,
BIS,The Insolvency Service,27/02/2014,Insolvency Case Related Costs,INVESTIGATION & ENFORCEMENT SERVICES                                                                ,Staff Payment,BA0000272451,7.00,
BIS,The Insolvency Service,28/02/2014,Insolvency Case Related Costs,INVESTIGATION & ENFORCEMENT SERVICES                                                                ,Staff Payment,BA0000272529,7.00,
BIS,The Insolvency Service,28/02/2014,Insolvency Case Related Costs,INVESTIGATION & ENFORCEMENT SERVICES                                                                ,Staff Payment,BA0000272529,16.00,
BIS,The Insolvency Service,07/02/2014,Insolvency Case Related Costs,OFFICIAL RECEIVER SERVICES                                                                          ,Staff Payment,BA0000271811,5.00,
BIS,The Insolvency Service,26/02/2014,Insolvency Case Related Costs,OFFICIAL RECEIVER SERVICES                                                                          ,Staff Payment,BA0000272402,197.95,
BIS,The Insolvency Service,13/02/2014,Office Supplies and Services,BUSINESS SERVICES DIRECTORATE                                                                       ,Staff Payment,BA0000272011,155.14,
BIS,The Insolvency Service,26/02/2014,Office Supplies and Services,BUSINESS SERVICES DIRECTORATE                                                                       ,Staff Payment,BA0000272402,5.86,
BIS,The Insolvency Service,03/02/2014,Office Supplies and Services,EXTERNAL AFFAIRS                                                                                    ,Staff Payment,BA0000271667,9.49,
BIS,The Insolvency Service,03/02/2014,Office Supplies and Services,INVESTIGATION & ENFORCEMENT SERVICES                                                                ,Staff Payment,BA0000271707,2.30,
BIS,The Insolvency Service,11/02/2014,Office Supplies and Services,OFFICIAL RECEIVER SERVICES                                                                          ,Staff Payment,BA0000271941,21.75,
BIS,The Insolvency Service,13/02/2014,Office Supplies and Services,OFFICIAL RECEIVER SERVICES                                                                          ,Staff Payment,BA0000272011,17.99,
BIS,The Insolvency Service,17/02/2014,Office Supplies and Services,OFFICIAL RECEIVER SERVICES                                                                          ,Staff Payment,BA0000272074,15.16,
BIS,The Insolvency Service,13/02/2014,Telecoms,INFORMATION TECHNOLOGY                                                                              ,Staff Payment,BA0000271994,28.60,
BIS,The Insolvency Service,13/02/2014,Telecoms,INFORMATION TECHNOLOGY                                                                              ,Staff Payment,BA0000271994,15.99,
BIS,The Insolvency Service,17/02/2014,Telecoms,INFORMATION TECHNOLOGY                                                                              ,Staff Payment,BA0000272103,32.02,
BIS,The Insolvency Service,19/02/2014,Telecoms,INFORMATION TECHNOLOGY                                                                              ,Staff Payment,BA0000272176,34.12,
BIS,The Insolvency Service,21/02/2014,Telecoms,INFORMATION TECHNOLOGY                                                                              ,Staff Payment,BA0000272239,70.97,
BIS,The Insolvency Service,03/02/2014,Travel and Subsistence,BUSINESS SERVICES DIRECTORATE                                                                       ,Staff Payment,BA0000271667,10.00,
BIS,The Insolvency Service,03/02/2014,Travel and Subsistence,BUSINESS SERVICES DIRECTORATE                                                                       ,Staff Payment,BA0000271667,325.35,
BIS,The Insolvency Service,03/02/2014,Travel and Subsistence,BUSINESS SERVICES DIRECTORATE                                                                       ,Staff Payment,BA0000271667,283.50,
BIS,The Insolvency Service,03/02/2014,Travel and Subsistence,BUSINESS SERVICES DIRECTORATE                                                                       ,Staff Payment,BA0000271667,100.25,
BIS,The Insolvency Service,03/02/2014,Travel and Subsistence,BUSINESS SERVICES DIRECTORATE                                                                       ,Staff Payment,BA0000271707,27.40,
BIS,The Insolvency Service,03/02/2014,Travel and Subsistence,BUSINESS SERVICES DIRECTORATE                                                                       ,Staff Payment,BA0000271707,135.00,
BIS,The Insolvency Service,03/02/2014,Travel and Subsistence,BUSINESS SERVICES DIRECTORATE                                                                       ,Staff Payment,BA0000271667,26.98,
BIS,The Insolvency Service,03/02/2014,Travel and Subsistence,BUSINESS SERVICES DIRECTORATE                                                                       ,Staff Payment,BA0000271667,40.00,
BIS,The Insolvency Service,03/02/2014,Travel and Subsistence,BUSINESS SERVICES DIRECTORATE                                                                       ,Staff Payment,BA0000271667,5.00,
BIS,The Insolvency Service,03/02/2014,Travel and Subsistence,BUSINESS SERVICES DIRECTORATE                                                                       ,Staff Payment,BA0000271707,49.32,
BIS,The Insolvency Service,03/02/2014,Travel and Subsistence,BUSINESS SERVICES DIRECTORATE                                                                       ,Staff Payment,BA0000271667,3.30,
BIS,The Insolvency Service,05/02/2014,Travel and Subsistence,BUSINESS SERVICES DIRECTORATE                                                                       ,Staff Payment,BA0000271775,19.90,
BIS,The Insolvency Service,05/02/2014,Travel and Subsistence,BUSINESS SERVICES DIRECTORATE                                                                       ,Staff Payment,BA0000271790,57.75,
BIS,The Insolvency Service,05/02/2014,Travel and Subsistence,BUSINESS SERVICES DIRECTORATE                                                                       ,Staff Payment,BA0000271775,9.56,
BIS,The Insolvency Service,07/02/2014,Travel and Subsistence,BUSINESS SERVICES DIRECTORATE                                                                       ,Staff Payment,BA0000271811,15.70,
BIS,The Insolvency Service,07/02/2014,Travel and Subsistence,BUSINESS SERVICES DIRECTORATE                                                                       ,Staff Payment,BA0000271811,120.00,
BIS,The Insolvency Service,07/02/2014,Travel and Subsistence,BUSINESS SERVICES DIRECTORATE                                                                       ,Staff Payment,BA0000271828,128.25,
BIS,The Insolvency Service,07/02/2014,Travel and Subsistence,BUSINESS SERVICES DIRECTORATE                                                                       ,Staff Payment,BA0000271811,94.50,
BIS,The Insolvency Service,07/02/2014,Travel and Subsistence,BUSINESS SERVICES DIRECTORATE                                                                       ,Staff Payment,BA0000271811,126.31,
BIS,The Insolvency Service,07/02/2014,Travel and Subsistence,BUSINESS SERVICES DIRECTORATE                                                                       ,Staff Payment,BA0000271828,5.00,
BIS,The Insolvency Service,07/02/2014,Travel and Subsistence,BUSINESS SERVICES DIRECTORATE                                                                       ,Staff Payment,BA0000271828,5.00,
BIS,The Insolvency Service,11/02/2014,Travel and Subsistence,BUSINESS SERVICES DIRECTORATE                                                                       ,Staff Payment,BA0000271941,4.50,
BIS,The Insolvency Service,11/02/2014,Travel and Subsistence,BUSINESS SERVICES DIRECTORATE                                                                       ,Staff Payment,BA0000271898,72.00,
BIS,The Insolvency Service,11/02/2014,Travel and Subsistence,BUSINESS SERVICES DIRECTORATE                                                                       ,Staff Payment,BA0000271898,121.50,
BIS,The Insolvency Service,11/02/2014,Travel and Subsistence,BUSINESS SERVICES DIRECTORATE                                                                       ,Staff Payment,BA0000271898,5.40,
BIS,The Insolvency Service,11/02/2014,Travel and Subsistence,BUSINESS SERVICES DIRECTORATE                                                                       ,Staff Payment,BA0000271898,35.82,
BIS,The Insolvency Service,11/02/2014,Travel and Subsistence,BUSINESS SERVICES DIRECTORATE                                                                       ,Staff Payment,BA0000271898,40.82,
BIS,The Insolvency Service,11/02/2014,Travel and Subsistence,BUSINESS SERVICES DIRECTORATE                                                                       ,Staff Payment,BA0000271898,5.00,
BIS,The Insolvency Service,11/02/2014,Travel and Subsistence,BUSINESS SERVICES DIRECTORATE                                                                       ,Staff Payment,BA0000271941,23.95,
BIS,The Insolvency Service,13/02/2014,Travel and Subsistence,BUSINESS SERVICES DIRECTORATE                                                                       ,Staff Payment,BA0000272011,72.50,
BIS,The Insolvency Service,13/02/2014,Travel and Subsistence,BUSINESS SERVICES DIRECTORATE                                                                       ,Staff Payment,BA0000271994,8.90,
BIS,The Insolvency Service,13/02/2014,Travel and Subsistence,BUSINESS SERVICES DIRECTORATE                                                                       ,Staff Payment,BA0000272011,8.90,
BIS,The Insolvency Service,13/02/2014,Travel and Subsistence,BUSINESS SERVICES DIRECTORATE                                                                       ,Staff Payment,BA0000271994,8.90,
BIS,The Insolvency Service,13/02/2014,Travel and Subsistence,BUSINESS SERVICES DIRECTORATE                                                                       ,Staff Payment,BA0000271994,1.00,
BIS,The Insolvency Service,13/02/2014,Travel and Subsistence,BUSINESS SERVICES DIRECTORATE                                                                       ,Staff Payment,BA0000272011,72.00,
BIS,The Insolvency Service,13/02/2014,Travel and Subsistence,BUSINESS SERVICES DIRECTORATE                                                                       ,Staff Payment,BA0000272011,7.00,
BIS,The Insolvency Service,13/02/2014,Travel and Subsistence,BUSINESS SERVICES DIRECTORATE                                                                       ,Staff Payment,BA0000271994,9.56,
BIS,The Insolvency Service,13/02/2014,Travel and Subsistence,BUSINESS SERVICES DIRECTORATE                                                                       ,Staff Payment,BA0000272011,7.67,
BIS,The Insolvency Service,13/02/2014,Travel and Subsistence,BUSINESS SERVICES DIRECTORATE                                                                       ,Staff Payment,BA0000271994,9.56,
BIS,The Insolvency Service,13/02/2014,Travel and Subsistence,BUSINESS SERVICES DIRECTORATE                                                                       ,Staff Payment,BA0000272011,79.59,
BIS,The Insolvency Service,13/02/2014,Travel and Subsistence,BUSINESS SERVICES DIRECTORATE                                                                       ,Staff Payment,BA0000271994,24.40,
BIS,The Insolvency Service,17/02/2014,Travel and Subsistence,BUSINESS SERVICES DIRECTORATE                                                                       ,Staff Payment,BA0000272103,7.50,
BIS,The Insolvency Service,17/02/2014,Travel and Subsistence,BUSINESS SERVICES DIRECTORATE                                                                       ,Staff Payment,BA0000272103,26.70,
BIS,The Insolvency Service,17/02/2014,Travel and Subsistence,BUSINESS SERVICES DIRECTORATE                                                                       ,Staff Payment,BA0000272103,15.00,
BIS,The Insolvency Service,17/02/2014,Travel and Subsistence,BUSINESS SERVICES DIRECTORATE                                                                       ,Staff Payment,BA0000272103,115.20,
BIS,The Insolvency Service,17/02/2014,Travel and Subsistence,BUSINESS SERVICES DIRECTORATE                                                                       ,Staff Payment,BA0000272103,135.25,
BIS,The Insolvency Service,17/02/2014,Travel and Subsistence,BUSINESS SERVICES DIRECTORATE                                                                       ,Staff Payment,BA0000272103,8.00,
BIS,The Insolvency Service,17/02/2014,Travel and Subsistence,BUSINESS SERVICES DIRECTORATE                                                                       ,Staff Payment,BA0000272103,66.00,
BIS,The Insolvency Service,17/02/2014,Travel and Subsistence,BUSINESS SERVICES DIRECTORATE                                                                       ,Staff Payment,BA0000272103,5.40,
BIS,The Insolvency Service,17/02/2014,Travel and Subsistence,BUSINESS SERVICES DIRECTORATE                                                                       ,Staff Payment,BA0000272103,23.80,
BIS,The Insolvency Service,17/02/2014,Travel and Subsistence,BUSINESS SERVICES DIRECTORATE                                                                       ,Staff Payment,BA0000272103,10.00,
BIS,The Insolvency Service,17/02/2014,Travel and Subsistence,BUSINESS SERVICES DIRECTORATE                                                                       ,Staff Payment,BA0000272103,5.00,
BIS,The Insolvency Service,19/02/2014,Travel and Subsistence,BUSINESS SERVICES DIRECTORATE                                                                       ,Staff Payment,BA0000272213,3.00,
BIS,The Insolvency Service,19/02/2014,Travel and Subsistence,BUSINESS SERVICES DIRECTORATE                                                                       ,Staff Payment,BA0000272213,30.00,
BIS,The Insolvency Service,19/02/2014,Travel and Subsistence,BUSINESS SERVICES DIRECTORATE                                                                       ,Staff Payment,BA0000272213,87.00,
BIS,The Insolvency Service,19/02/2014,Travel and Subsistence,BUSINESS SERVICES DIRECTORATE                                                                       ,Staff Payment,BA0000272213,31.50,
BIS,The Insolvency Service,19/02/2014,Travel and Subsistence,BUSINESS SERVICES DIRECTORATE                                                                       ,Staff Payment,BA0000272213,10.00,
BIS,The Insolvency Service,19/02/2014,Travel and Subsistence,BUSINESS SERVICES DIRECTORATE                                                                       ,Staff Payment,BA0000272213,18.75,
BIS,The Insolvency Service,19/02/2014,Travel and Subsistence,BUSINESS SERVICES DIRECTORATE                                                                       ,Staff Payment,BA0000272213,8.00,
BIS,The Insolvency Service,19/02/2014,Travel and Subsistence,BUSINESS SERVICES DIRECTORATE                                                                       ,Staff Payment,BA0000272213,122.85,
BIS,The Insolvency Service,19/02/2014,Travel and Subsistence,BUSINESS SERVICES DIRECTORATE                                                                       ,Staff Payment,BA0000272213,30.00,
BIS,The Insolvency Service,19/02/2014,Travel and Subsistence,BUSINESS SERVICES DIRECTORATE                                                                       ,Staff Payment,BA0000272213,79.90,
BIS,The Insolvency Service,19/02/2014,Travel and Subsistence,BUSINESS SERVICES DIRECTORATE                                                                       ,Staff Payment,BA0000272213,10.25,
BIS,The Insolvency Service,19/02/2014,Travel and Subsistence,BUSINESS SERVICES DIRECTORATE                                                                       ,Staff Payment,BA0000272176,3.93,
BIS,The Insolvency Service,21/02/2014,Travel and Subsistence,BUSINESS SERVICES DIRECTORATE                                                                       ,Staff Payment,BA0000272239,124.00,
BIS,The Insolvency Service,21/02/2014,Travel and Subsistence,BUSINESS SERVICES DIRECTORATE                                                                       ,Staff Payment,BA0000272261,54.30,
BIS,The Insolvency Service,21/02/2014,Travel and Subsistence,BUSINESS SERVICES DIRECTORATE                                                                       ,Staff Payment,BA0000272239,31.65,
BIS,The Insolvency Service,21/02/2014,Travel and Subsistence,BUSINESS SERVICES DIRECTORATE                                                                       ,Staff Payment,BA0000272239,135.00,
BIS,The Insolvency Service,21/02/2014,Travel and Subsistence,BUSINESS SERVICES DIRECTORATE                                                                       ,Staff Payment,BA0000272239,24.10,
BIS,The Insolvency Service,21/02/2014,Travel and Subsistence,BUSINESS SERVICES DIRECTORATE                                                                       ,Staff Payment,BA0000272239,187.20,
BIS,The Insolvency Service,21/02/2014,Travel and Subsistence,BUSINESS SERVICES DIRECTORATE                                                                       ,Staff Payment,BA0000272239,33.15,
BIS,The Insolvency Service,21/02/2014,Travel and Subsistence,BUSINESS SERVICES DIRECTORATE                                                                       ,Staff Payment,BA0000272239,135.00,
BIS,The Insolvency Service,21/02/2014,Travel and Subsistence,BUSINESS SERVICES DIRECTORATE                                                                       ,Staff Payment,BA0000272261,68.80,
BIS,The Insolvency Service,21/02/2014,Travel and Subsistence,BUSINESS SERVICES DIRECTORATE                                                                       ,Staff Payment,BA0000272261,13.50,
BIS,The Insolvency Service,21/02/2014,Travel and Subsistence,BUSINESS SERVICES DIRECTORATE                                                                       ,Staff Payment,BA0000272239,44.76,
BIS,The Insolvency Service,21/02/2014,Travel and Subsistence,BUSINESS SERVICES DIRECTORATE                                                                       ,Staff Payment,BA0000272239,58.18,
BIS,The Insolvency Service,21/02/2014,Travel and Subsistence,BUSINESS SERVICES DIRECTORATE                                                                       ,Staff Payment,BA0000272239,59.18,
BIS,The Insolvency Service,21/02/2014,Travel and Subsistence,BUSINESS SERVICES DIRECTORATE                                                                       ,Staff Payment,BA0000272261,41.09,
